{"text_format":"1","workbook":"xlsx","n_sheets":7,"sheets":["表紙","自己採点シート","自己採点シート (全学版)","学習自己点検シート ","単位修得状況確認表（共通教育科目，留学生）","単位修得状況確認表（専門教育科目）","累積グラフ"],"not_rendered":{"charts":9,"images":3,"macros":1,"external_links":0,"defined_names":29,"comments":0,"pivot_tables":0},"unopened":[],"bounds":{"document_bytes":16777216,"sheet_cells":100000,"rows_first":2000,"rows_last":500,"rows_between":2000,"halvings":0,"cell_chars":16384,"cell_head_chars":4096},"cells_cut":0,"cells_raw":0,"read":"whole","date_system":"1900"}

{"sheet":"表紙","index":0,"n_rows":34,"n_cols":2,"rows_kept":34,"cut":false,"hidden":false,"merged":[[32,2,32,3],[33,3,33,4]]}
[]
[]
[]
[]
[]
[]
[]
[]
[]
[]
[]
[null,"鹿児島大学工学部ポートフォリオ"]
[]
[]
[]
[]
[]
[]
[]
[]
[]
[]
[]
[]
[]
[]
[]
[]
[]
[]
[null,"入学年度：令和4年度"]
[null,"学科：建築学科　建築学プログラム"]
[null,"氏名："]
[null,"学籍番号："]

{"sheet":"自己採点シート","index":1,"n_rows":22,"n_cols":21,"rows_kept":22,"cut":false,"hidden":false,"merged":[[13,2,13,5],[3,8,3,9],[9,2,9,5],[10,2,10,5],[11,2,11,5],[12,2,12,5],[20,2,20,5],[21,2,21,5],[14,2,14,5],[15,2,15,5],[16,2,16,5],[17,2,17,5],[18,2,18,5],[19,2,19,5]]}
[]
[null,"自己採点シート"]
[]
[null,null,null,null,"氏名:",{"$f":"表紙!C32","v":0},null,"学籍番号：",{"$f":"表紙!D33","v":0}]
[]
[null,"■学生のみなさんへ"]
[null,null,"今期を振り返って、以下の項目に対して自己採点をしてください。(１０点満点)"]
[]
[]
[null,null,"項目",null,null,null,"1期","2期","3期","4期","5期","6期","7期","8期","9期","10期","11期","12期","13期","14期","卒業時"]
[null,1,"工学に関しての基礎知識\n（物理・化学・数学・情報など）"]
[null,2,"各工学分野での基礎知識\n（専門科目など）"]
[null,3,"人前での発表能力"]
[null,4,"人と話し合ったり議論する能力"]
[null,5,"チームの一員として取り組める（チームワーク）能力"]
[null,6,"英語、その他外国語による表現力"]
[null,7,"読書、講習会への参加、英会話や情報処理学習など大学以外での学習による自己啓発・生涯学習能力"]
[null,8,"社会性や国際感覚が身についているか。"]
[null,9,"倫理観、責任感が身についているか。"]
[null,10]
[null,11]
[null,12]

{"sheet":"自己採点シート (全学版)","index":2,"n_rows":19,"n_cols":13,"rows_kept":19,"cut":false,"hidden":false,"merged":[[3,5,3,6],[3,8,3,9],[6,2,6,12],[8,1,9,1],[8,2,9,5],[8,6,8,7],[8,8,8,9],[8,10,8,11],[8,12,9,12],[17,1,18,1],[17,2,18,5],[10,1,11,1],[10,2,11,5],[12,1,14,1],[12,2,14,5],[15,1,16,1],[15,2,16,5]]}
[]
[null,"自己採点シート（全学基盤ルーブリック）"]
[]
[null,null,"氏名：",null,"氏名:",{"$f":"表紙!C32","v":0},{"$f":"表紙!D32","v":0},"学籍番号：",{"$f":"表紙!D33","v":0}]
[]
[null,"■学生のみなさんへ"]
[null,null,"以下の項目は鹿児島大学の学生として，それぞれの区切りにおいて共通的に備えておくべき能力を表しています．それぞれの項目に対して１０点満点で採点して自己点検をして下さい．"]
[]
[null,null,"大項目",null,null,null,"入学時（もしくは最初に記入するとき）",null,"２年終了時",null,"卒業時（本学の目標）",null,"発展的な目標"]
[null,null,null,null,null,null,"項目","自己評価","項目","自己評価","項目","自己評価"]
[null,1,"自身の成長のために学び続ける力",null,null,null,"自身の成長のために学習しようという意欲がある",null,"自身の状況を省察して課題を発見することができる",null,"自身の状況を省察して課題を発見し、行動を改善することができる",null,"周囲や社会状況に対する的確な判断に基づいて自身の状況を省察して課題を発見し、自身や自身を取り巻く状況を改善するこ とができる"]
[null,null,null,null,null,null,"自身の成長のために適切な学習方法で学ぶ必要があるとの認識がある",null,"目的・目標に応じた方法で学ぶことができる",null,"自身に必要な知識や技術を習得するために適切な方法で学ぶことができる",null,"自ら目標を設定し、それに応じた方法で学び続けることができる"]
[null,2,"多様性を理解し、尊重したコミュニケーションをする力",null,null,null,"相手や状況に応じたコミュニケーションの必要性 を認識している",null,"学習場面において、学生間や教員との間で適切なコミュニケーションができ る",null,"自身が置かれた状況において、相手や状況に応じたコミュニケーションができる",null,"どのような場面においても、多様性を理解、尊重したコミュニケーションが できる"]
[null,null,null,null,null,null,"対話や文章を通じたコミ ュニケーションにおける 倫理の重要性を認識して いる",null,"対話や文章を通じたコミュニケーションに関する倫理について説明することができる",null,"倫理に則った対話や文章を通じたコミュニケーションができる",null,"自身のコミュニケーショ ンが倫理の観点から適切であるかを問い直しつつ、対話や文章を通じたコミ ュニケーションをより適切に行うことができる"]
[null,null,null,null,null,null,"他者との協働の必要性を理解し、それに関わる意欲がある",null,"学習場面において、課題の解決のために学生間で協働できる",null,"自分が置かれた状況を踏まえて、課題解決のために他者と協働できる",null,"他者を尊重して協働し、多様性を活かした課題解決ができる"]
[null,3,"地域/グローバル社会の一員として責任感を持って行動する力",null,null,null,"地域/グローバル社会の一員であるとの自覚がある",null,"社会の一員として求められる倫理・社会的規範に基づく行動の在り方について説明したり、議論したりできる",null,"自分が置かれた状況を踏まえて、社会の一員として倫理・社会的規範に基づいて行動できる",null,"自身の行動が倫理・社会的規範という観点から適切であるかを問い直しつつ、責任ある行動ができる"]
[null,null,null,null,null,null,"地域社会の課題の解決に貢献する意義や必要性を認識している",null,"地域社会の課題の発見や与えられた課題に対する解決策の構想・提案ができる",null,"専門的見地から地域社会の課題を発見し、その発展に貢献し得る自らの専門性を踏まえた方策を構想、 提案できる",null,"地域社会の課題を発見し、その発展に貢献する方策を構想・提案し、解決に向けて自律的に行動できる"]
[null,4,"論理的に考え、多様な情報を活かす力",null,null,null,"情報の多様性やそれらに対する論理的思考の意義を認識している",null,"学習場面において、多様な情報を批判的に検証・精査しながら学ぶことができる",null,"多様な情報を批判的に検証・精査して取捨選択し、 状況に応じて活用できる",null,"多様な情報を批判的に検証・精査し、論理的思考を通じて新たな知の創出に活用できる"]
[null,null,null,null,null,null,"学術的方法の修得に対する意欲がある",null,"学習場面に応じて、適切な学術的方法について説明できる",null,"適切な学術的方法に基づき、新たな知の探究・創出に貢献できる",null,"既存の学術的方法を批判的に問い直し、新たな知を探究・創出できる"]

{"sheet":"学習自己点検シート ","index":3,"n_rows":68,"n_cols":13,"rows_kept":68,"cut":false,"hidden":false,"merged":[[4,11,4,12],[7,2,7,12]]}
[]
[null,null,null,null,null,null,null,null,null,null,null,"年度","期"]
[null,"学習自己点検シート"]
[]
[null,null,null,null,null,null,null,"氏名:",{"$f":"表紙!F34","v":0},null,"学籍番号：",{"$f":"表紙!G35","v":0}]
[]
[null,"■学生のみなさんへ"]
[null,null,"学生生活全般に関して自己点検をお願いしています。今期を振り返って、以下の質問項目に答えてください。面談時、指導教員（アドバイザー）の先生方から回答に対する具体的なアドバイスを受けてください。"]
[]
[]
[null,"■回答項目"]
[]
[null,1,"今期の目標は達成できましたか。"]
[]
[]
[]
[]
[null,2,"講義への取り組みは積極的でしたか。また、積極的に取り組むことができなかった講義は具体的に何ですか。"]
[]
[]
[]
[]
[null,3,"講義毎に勉強方法がつかめていますか。"]
[]
[]
[]
[]
[null,4,"それぞれの講義の理解度は自分の目標に達していますか。理解度が足りないと感じている講義は何ですか。"]
[]
[]
[]
[]
[null,5,"平日（試験勉強以外）１日当たりの勉強時間（平均）はどのくらいですか。勉強時間が足りないと感じている講義は何ですか。"]
[]
[]
[]
[]
[null,6,"アルバイトと勉強は両立できましたか。"]
[]
[]
[]
[]
[null,7,"サークル活動と勉強は両立できましたか。"]
[]
[]
[]
[]
[null,8,"卒業後の進路についてどのように考えていますか。"]
[]
[]
[]
[]
[null,9,"その他、アドバイスが必要なことはありますか。"]
[]
[]
[]
[]
[null,10]
[]
[]
[]
[]
[null,11]
[]
[]
[]
[]
[null,12]

{"sheet":"単位修得状況確認表（共通教育科目，留学生）","index":4,"n_rows":38,"n_cols":48,"rows_kept":38,"cut":false,"hidden":false,"merged":[[27,36,27,37],[27,14,27,15],[27,16,27,17],[27,18,27,19],[27,20,27,21],[27,22,27,23],[27,24,27,25],[27,26,27,27],[27,28,27,29],[27,30,27,31],[27,32,27,33],[27,34,27,35],[26,28,26,29],[26,30,26,31],[26,32,26,33],[26,34,26,35],[26,36,26,37],[27,0,27,5],[27,6,27,7],[27,8,27,9],[27,10,27,11],[27,12,27,13],[26,26,26,27],[26,0,26,5],[26,6,26,7],[26,8,26,9],[26,10,26,11],[26,12,26,13],[26,14,26,15],[26,16,26,17],[26,18,26,19],[26,20,26,21],[26,22,26,23],[26,24,26,25],[25,36,25,37],[25,14,25,15],[25,16,25,17],[25,18,25,19],[25,20,25,21],[25,22,25,23],[25,24,25,25],[25,26,25,27],[25,28,25,29],[25,30,25,31],[25,32,25,33],[25,34,25,35],[25,12,25,13],[16,0,21,0],[16,1,18,3],[17,4,18,4],[19,1,20,3],[23,1,23,9],[25,0,25,5],[25,6,25,7],[25,8,25,9],[25,10,25,11],[19,39,20,39],[22,0,22,5],[4,30,4,31],[4,32,4,33],[4,34,4,35],[4,36,4,37],[6,0,15,0],[6,1,10,3],[8,4,9,4],[11,1,12,3],[13,1,14,3],[4,18,4,19],[4,20,4,21],[4,22,4,23],[4,24,4,25],[4,26,4,27],[4,28,4,29],[3,22,3,25],[3,26,3,29],[3,30,3,33],[3,34,3,37],[4,16,4,17],[1,0,1,40],[2,0,5,5],[2,6,2,37],[2,38,5,38],[2,39,5,39],[2,40,5,40],[3,6,3,9],[3,10,3,13],[3,14,3,17],[3,18,3,21],[4,6,4,7],[4,8,4,9],[4,10,4,11],[4,12,4,13],[4,14,4,15]]}
[{"$f":"'単位修得状況確認表（共通教育科目，留学生）'!G7:V13","v":{"$error":"#VALUE!"}},null,null,null,null,null,null,null,null,null,null,null,null,null,null,null,null,null,null,null,null,null,null,null,null,null,null,null,null,null,null,null,null,null,null,null,null,null,null,null,null,null,null,null,null,null,null,"A"]
["単位修得状況確認表（共通教育科目：留学生）",null,null,null,null,null,null,null,null,null,null,null,null,null,null,null,null,null,null,null,null,null,null,null,null,null,null,null,null,null,null,null,null,null,null,null,null,null,null,null,null,null,null,null,null,null,null,"B"]
["　",null,null,null,null,null,"取得単位数およびGP",null,null,null,null,null,null,null,null,null,null,null,null,null,null,null,null,null,null,null,null,null,null,null,null,null,null,null,null,null,null,null,"取得単位数","要修得\n単位数","累積GP",null,null,"当該期修得単位の入力要領（共通教育科目）",null,null,null,"C"]
[null,null,null,null,null,null,"　年次",null,null,null,"　年次",null,null,null,"　年次",null,null,null,"　年次",null,null,null,"　年次",null,null,null,"　年次",null,null,null,"　年次",null,null,null,"　年次",null,null,null,null,null,null,null,null,"１．黄色枠に各科目(英語の場合は修得した合計",null,null,null,"D"]
[null,null,null,null,null,null,"１期",null,"２期",null,"３期",null,"４期",null,"５期",null,"６期",null,"７期",null,"８期",null,"９期",null,"10期",null,"11期",null,"12期",null,"13期",null,"14期",null,"15期",null,"16期",null,null,null,null,null,null,"　　単位数)の修得単位数を記入する。",null,null,null,"F"]
[null,null,null,null,null,null,"単位","合計GP","単位","合計GP","単位","合計GP","単位","合計GP","単位","合計GP","単位","合計GP","単位","合計GP","単位","合計GP","単位","合計GP","単位","合計GP","単位","合計GP","単位","合計GP","単位","合計GP","単位","合計GP","単位","合計GP","単位","合計GP",null,null,null,null,null,"２．オレンジ枠に修得した必修科目・選択必修",null,null,null,"P"]
["必修科目","初年次\n教育科目",null,null,"初年次セミナーⅠ",null,null,null,null,null,null,null,null,null,null,null,null,null,null,null,null,null,null,null,null,null,null,null,null,null,null,null,null,null,null,null,null,null,{"$f":"SUM(G7,I7,K7,M7,O7,Q7,S7,U7,W7,Y7,AA7,AC7,AE7,AG7,AI7,AK7)","v":0},2,null,null,null,"　　科目それぞれの合計単位数を記入する。"]
[null,null,null,null,"大学と地域",null,null,null,null,null,null,null,null,null,null,null,null,null,null,null,null,null,null,null,null,null,null,null,null,null,null,null,null,null,null,null,null,null,0,2,null,null,null,"　　を計算し、その値を入力する。"]
[null,null,null,null,"体育・健康","理論",null,null,null,null,null,null,null,null,null,null,null,null,null,null,null,null,null,null,null,null,null,null,null,null,null,null,null,null,null,null,null,null,0,1,null,null,null,"　（評価とGPの関係：A=4,B=3,C=2,D=1,F=0,Pは"]
[null,null,null,null,null,"実習",null,null,null,null,null,null,null,null,null,null,null,null,null,null,null,null,null,null,null,null,null,null,null,null,null,null,null,null,null,null,null,null,0,1,null,null,null,"　　GPの該当外なので合計GP欄は空欄とする。）"]
[null,null,null,null,"情報活用",null,null,null,null,null,null,null,null,null,null,null,null,null,null,null,null,null,null,null,null,null,null,null,null,null,null,null,null,null,null,null,null,null,0,2,null,null,null,"４．取得単位数を要修得単位数と比較して、"]
[null,"ｸﾞﾛｰﾊﾞﾙ\n教育科目",null,null,"英語",null,null,null,null,null,null,null,null,null,null,null,null,null,null,null,null,null,null,null,null,null,null,null,null,null,null,null,null,null,null,null,null,null,0,6,null,null,null,"　　単位取得状況を把握する。"]
[null,null,null,null,"異文化理解",null,null,null,null,null,null,null,null,null,null,null,null,null,null,null,null,null,null,null,null,null,null,null,null,null,null,null,null,null,null,null,null,null,0,2]
[null,"日本語・日本事情",null,null,"日本語",null,null,null,null,null,null,null,null,null,null,null,null,null,null,null,null,null,null,null,null,null,null,null,null,null,null,null,null,null,null,null,null,null,0,4,null,null,null,"　　単位取得状況を把握する。"]
[null,null,null,null,"日本事情",null,null,null,null,null,null,null,null,null,null,null,null,null,null,null,null,null,null,null,null,null,null,null,null,null,null,null,null,null,null,null,null,null,0,"(4)"]
[null,"必修科目　計",null,null,null,null,null,{"$f":"SUM(H7:H15)","v":0},null,{"$f":"SUM(J7:J15)","v":0},null,{"$f":"SUM(L7:L15)","v":0},null,{"$f":"SUM(N7:N15)","v":0},null,{"$f":"SUM(P7:P15)","v":0},null,{"$f":"SUM(R7:R15)","v":0},null,{"$f":"SUM(T7:T15)","v":0},null,{"$f":"SUM(V7:V15)","v":0},null,{"$f":"SUM(X7:X15)","v":0},null,{"$f":"SUM(Z7:Z15)","v":0},null,{"$f":"SUM(AB7:AB15)","v":0},null,{"$f":"SUM(AD7:AD15)","v":0},null,{"$f":"SUM(AF7:AF15)","v":0},null,{"$f":"SUM(AH7:AH15)","v":0},null,{"$f":"SUM(AJ7:AJ15)","v":0},null,{"$f":"SUM(AL7:AL15)","v":0},0,20,{"$f":"SUM(H16,J16,L16,N16,P16,R16,T16,V16,X16,Z16,AB16,AD16,AF16,AH16,AJ16,AL16)","v":0},null,null,"※期をまたがって開講される科目は、成績の出"]
["選択必修科目","教養教育\n科目",null,null,"人文・社会科学分野","選択科目",null,null,null,null,null,null,null,null,null,null,null,null,null,null,null,null,null,null,null,null,null,null,null,null,null,null,null,null,null,null,null,null,0,4,null,null,null,"　された期に記入する。例えば通年の場合、後"]
[null,null,null,null,"自然科学分野","選択科目",null,null,null,null,null,null,null,null,null,null,null,null,null,null,null,null,null,null,null,null,null,null,null,null,null,null,null,null,null,null,null,null,0,2,null,null,null,"　期に記入する。"]
[null,null,null,null,null,"基礎教育入門科目",null,null,null,null,null,null,null,null,null,null,null,null,null,null,null,null,null,null,null,null,null,null,null,null,null,null,null,null,null,null,null,null,0,2,null,null,null,"※本表最下部の表の入力方法について"]
[null,"教養活用\n科目",null,null,"統合Ⅰ（課題発見）",null,null,null,null,null,null,null,null,null,null,null,null,null,null,null,null,null,null,null,null,null,null,null,null,null,null,null,null,null,null,null,null,null,0,4,null,null,null,"　・P評価の単位数は、当該期①の欄に、"]
[null,null,null,null,"統合Ⅱ（課題解決）",null,null,null,null,null,null,null,null,null,null,null,null,null,null,null,null,null,null,null,null,null,null,null,null,null,null,null,null,null,null,null,null,null,0,null,null,null,null,"　・F評価の単位数は、当該期②の欄に、"]
[null,"選択必修科目　計",null,null,null,null,null,{"$f":"SUM(H17:H21)","v":0},null,{"$f":"SUM(J17:J21)","v":0},null,{"$f":"SUM(L17:L21)","v":0},null,{"$f":"SUM(N17:N21)","v":0},null,{"$f":"SUM(P17:P21)","v":0},null,{"$f":"SUM(R17:R21)","v":0},null,{"$f":"SUM(T17:T21)","v":0},null,{"$f":"SUM(V17:V21)","v":0},null,{"$f":"SUM(X17:X21)","v":0},null,{"$f":"SUM(Z17:Z21)","v":0},null,{"$f":"SUM(AB17:AB21)","v":0},null,{"$f":"SUM(AD17:AD21)","v":0},null,{"$f":"SUM(AF17:AF21)","v":0},null,{"$f":"SUM(AH17:AH21)","v":0},null,{"$f":"SUM(AJ17:AJ21)","v":0},null,{"$f":"SUM(AL17:AL21)","v":0},0,12,{"$f":"SUM(H22,J22,L22,N22,P22,R22,T22,V22,X22,Z22,AB22,AD22,AF22,AH22,AJ22,AL22)","v":0},null,null,"　・評価F科目の再履修での修得単位数は当該"]
["全科目合計",null,null,null,null,null,{"$f":"G16+G22","v":0},0,0,0,0,0,0,0,0,0,0,0,0,0,0,0,{"$f":"W16+W22","v":0},0,{"$f":"Y16+Y22","v":0},0,0,{"$f":"AB16+AB22","v":0},{"$f":"AC16+AC22","v":0},{"$f":"AD16+AD22","v":0},{"$f":"AE16+AE22","v":0},{"$f":"AF16+AF22","v":0},0,0,0,0,0,0,0,32,{"$f":"SUM(H23,J23,L23,N23,P23,R23,T23,V23,X23,Z23,AB23,AD23,AF23,AH23,AJ23,AL23)","v":0},null,null,"　　期③の欄に入力する。なお、②には再履修"]
["※","「期を増やす」欄により学年を４年間増やすことが可。",null,null,null,null,null,null,null,null,null,null,null,null,null,null,null,null,null,null,null,null,null,null,null,null,null,null,null,null,null,null,null,null,null,null,null,null,null,null,null,null,null,"　　の科目は含まない。"]
[null,null,null,null,null,null,null,null,null,null,null,null,null,null,null,null,null,null,null,null,null,null,null,null,null,null,null,null,null,null,null,null,null,null,null,null,null,null,null,null,null,null,null,"※評価Fの科目を再履修して単位を修得した場合"]
["①【共通教育科目】評価Pの単位数",null,null,null,null,null,null,null,null,null,null,null,null,null,null,null,null,null,null,null,null,null,null,null,null,null,null,null,null,null,null,null,null,null,null,null,null,null,{"$f":"SUM(G26:AL26)","v":0},null,null,null,null,"　の入力方法について"]
["②【共通教育科目】不合格（評価F）の単位数",null,null,null,null,null,null,null,null,null,null,null,null,null,null,null,null,null,null,null,null,null,null,null,null,null,null,null,null,null,null,null,null,null,null,null,null,null,{"$f":"SUM(G27:AL27)","v":0},null,null,null,null,"　上記1～3の手順で入力する。"]
["③【共通教育科目】評価F科目の再履修での修得単位数",null,null,null,null,null,null,null,null,null,null,null,null,null,null,null,null,null,null,null,null,null,null,null,null,null,null,null,null,null,null,null,null,null,null,null,null,null,{"$f":"SUM(G28:AL28)","v":0},null,null,null,null,"※既修得単位（D以上）の科目を再履修して単位を"]
[null,null,null,null,null,null,null,null,null,null,null,null,null,null,null,null,null,null,null,null,null,null,null,null,null,null,null,null,null,null,null,null,null,null,null,null,null,null,null,null,null,null,null,"　修得した場合の入力方法について"]
[null,null,null,null,null,null,null,null,null,null,null,null,null,null,null,null,null,null,null,null,null,null,null,null,null,null,null,null,null,null,null,null,null,null,null,null,null,null,null,null,null,null,null,"　今期の分を上記1～3の手順で入力した後、"]
[null,null,null,null,null,null,null,null,null,null,null,null,null,null,null,null,null,null,null,null,null,null,null,null,null,null,null,null,null,null,null,null,null,null,null,null,null,null,null,null,null,null,null,"  過去の評価（黄色枠）と合計GP（灰色枠）"]
[null,null,null,null,null,null,null,null,null,null,null,null,null,null,null,null,null,null,null,null,null,null,null,null,null,null,null,null,null,null,null,null,null,null,null,null,null,null,null,null,null,null,null,"　を削除し、過去のオレンジ枠の合計修得単位数"]
[null,null,null,null,null,null,null,null,null,null,null,null,null,null,null,null,null,null,null,null,null,null,null,null,null,null,null,null,null,null,null,null,null,null,null,null,null,null,null,null,null,null,null,"　から今期再履修で修得した単位数を引いた値を"]
[null,null,null,null,null,null,null,null,null,null,null,null,null,null,null,null,null,null,null,null,null,null,null,null,null,null,null,null,null,null,null,null,null,null,null,null,null,null,null,null,null,null,null,"　過去のオレンジ枠の合計修得単位数に再入力する。"]
[]
[null,null,null,null,null,null,null,null,null,null,null,null,null,null,null,null,null,null,null,null,null,null,null,null,null,null,null,null,null,null,null,null,null,null,null,null,null,null,null,null,null,null,null,"（補足説明）"]
[null,null,null,null,null,null,null,null,null,null,null,null,null,null,null,null,null,null,null,null,null,null,null,null,null,null,null,null,null,null,null,null,null,null,null,null,null,null,null,null,null,null,null,"※留年した場合は「期を増やす」欄で列を増"]
[null,null,null,null,null,null,null,null,null,null,null,null,null,null,null,null,null,null,null,null,null,null,null,null,null,null,null,null,null,null,null,null,null,null,null,null,null,null,null,null,null,null,null,"　やす。"]

{"sheet":"単位修得状況確認表（専門教育科目）","index":5,"n_rows":82,"n_cols":52,"rows_kept":82,"cut":false,"hidden":false,"merged":[[1,0,1,41],[2,0,2,1],[2,2,5,2],[2,3,5,3],[2,4,5,4],[2,7,2,38],[2,39,5,39],[2,40,5,40],[2,41,5,41],[3,7,3,10],[3,35,3,38],[4,7,4,8],[4,9,4,10],[4,11,4,12],[4,13,4,14],[4,15,4,16],[4,17,4,18],[4,19,4,20],[4,21,4,22],[4,23,4,24],[3,11,3,14],[3,15,3,18],[3,19,3,22],[3,23,3,26],[16,1,17,1],[16,40,17,40],[75,0,75,6],[76,0,76,6],[77,1,77,11],[77,39,77,40],[3,27,3,30],[3,31,3,34],[4,37,4,38],[5,0,5,1],[6,0,13,0],[6,1,8,1],[4,25,4,26],[4,27,4,28],[4,29,4,30],[4,31,4,32],[4,33,4,34],[4,35,4,36],[6,40,8,40],[31,40,35,40],[20,40,24,40],[25,40,29,40],[36,40,56,40],[58,40,61,40],[63,40,71,40],[20,1,29,1],[31,1,35,1],[36,1,56,1],[79,29,79,30],[79,31,79,32],[79,33,79,34],[73,1,73,5],[58,1,72,1],[11,51,12,51],[14,1,14,5],[79,35,79,36],[79,37,79,38],[79,25,79,26],[79,27,79,28],[79,17,79,18],[79,19,79,20],[79,21,79,22],[79,23,79,24],[79,0,79,6],[79,7,79,8],[79,9,79,10],[79,11,79,12],[79,13,79,14],[79,15,79,16],[16,0,73,0],[6,47,56,47],[10,1,13,1],[10,40,13,40],[30,2,30,5],[57,2,57,5],[62,2,62,5],[72,2,72,5],[80,33,80,34],[80,35,80,36],[80,37,80,38],[80,15,80,16],[80,17,80,18],[80,19,80,20],[80,21,80,22],[80,23,80,24],[80,25,80,26],[81,0,81,6],[81,7,81,8],[81,9,81,10],[81,11,81,12],[81,13,81,14],[81,15,81,16],[80,27,80,28],[80,29,80,30],[80,31,80,32],[81,29,81,30],[81,31,81,32],[80,0,80,6],[80,7,80,8],[80,9,80,10],[80,11,80,12],[80,13,80,14],[81,33,81,34],[81,35,81,36],[81,37,81,38],[81,17,81,18],[81,19,81,20],[81,21,81,22],[81,23,81,24],[81,25,81,26],[81,27,81,28]]}
[null,null,null,null,null,null,null,null,null,null,null,null,null,null,null,null,null,null,null,null,null,null,null,null,null,null,null,null,null,null,null,null,null,null,null,null,null,null,null,null,null,null,null,null,null,null,null,null,"A"]
["単位修得状況確認表（専門教育科目）",null,null,null,null,null,null,null,null,null,null,null,null,null,null,null,null,null,null,null,null,null,null,null,null,null,null,null,null,null,null,null,null,null,null,null,null,null,null,null,null,null,null,null,"受講科目の単位入力要領（専門教育科目）",null,null,null,"B"]
["区",null,"必修","選択必修","選択","授","単","履修科目の評価およびGP",null,null,null,null,null,null,null,null,null,null,null,null,null,null,null,null,null,null,null,null,null,null,null,null,null,null,null,null,null,null,null,"取得単位数","要修得\n単位数","累積GP",null,null,"STEP１",null,null,null,"C"]
[null," ",null,null,null,"業"," ","　年次",null,null,null,"　年次",null,null,null,"　年次",null,null,null,"　年次",null,null,null,"　年次",null,null,null,"　年次",null,null,null,"　年次",null,null,null,"　年次",null,null,null,null,null,null,null,null,"当該期に受講した科目の単位を区分ごとに以下の手順で",null,null,null,"D"]
[null,null,null,null,null,"科",null,"１期",null,"２期",null,"３期",null,"４期",null,"５期",null,"６期",null,"７期",null,"８期",null,"９期",null,"10期",null,"11期",null,"12期",null,"13期",null,"14期",null,"15期",null,"16期",null,null,null,null,null,null,"入力し、要修得単位数と比較して単位取得状況を把握",null,null,null,"F"]
["分",null,null,null,null,"目","位","評価","合計GP","評価","合計GP","評価","合計GP","評価","合計GP","評価","合計GP","評価","合計GP","評価","合計GP","評価","合計GP","評価","合計GP","評価","合計GP","評価","合計GP","評価","合計GP","評価","合計GP","評価","合計GP","評価","合計GP","評価","合計GP",null,null,null,null,null,"する。",null,null,null,"P"]
["学部共通科目","工学基礎教育強化科目","〇",null,null,"微分積分学Ⅰ",2,null,null,null,null,null,null,null,null,null,null,null,null,null,null,null,null,null,null,null,null,null,null,null,null,null,null,null,null,null,null,null,null,null,6,null,null,null,null,null,null,"必修科目",250421000101,{"$f":"F7","v":"微分積分学Ⅰ"}]
[null,null,"〇",null,null,"線形代数学Ⅰ",2,null,null,null,null,null,null,null,null,null,null,null,null,null,null,null,null,null,null,null,null,null,null,null,null,null,null,null,null,null,null,null,null,null,null,null,null,null,"１．黄色枠に受講科目の評価（A,B,C,D,F,P）を入力する。",null,null,null,250421000110,"線形代数学Ⅰ"]
[null,null,"〇",null,null,"物理学基礎Ⅰ",2,null,null,null,null,null,null,null,null,null,null,null,null,null,null,null,null,null,null,null,null,null,null,null,null,null,null,null,null,null,null,null,null,null,null,null,null,null,"２．オレンジ枠に合計修得単位数を入力する。",null,null,null,250152199102,"物理学基礎Ⅰ","2件以上ヒット","技術者倫理 250227000170\n技術者倫理（機） 250152199102"]
[null,"工学概論系科目","〇",null,null,"工学概論",2,null,null,null,null,null,null,null,null,null,null,null,null,null,null,null,null,null,null,null,null,null,null,null,null,null,null,null,null,null,null,null,null,null,2,null,null,null,"３．灰色枠に受講科目の合計GP（単位数×GP）を計算し、",null,null,null,250421000101,"工学概論"]
[null,"分野融合科目",null,"〇",null,"環境保全と防災",2,null,null,null,null,null,null,null,null,null,null,null,null,null,null,null,null,null,null,null,null,null,null,null,null,null,null,null,null,null,null,null,null,null,2,null,null,null,"    その値を入力する。",null,null,null,250421000110,"環境保全と防災"]
[null,null,null,"〇",null,"科学技術と生産",2,null,null,null,null,null,null,null,null,null,null,null,null,null,null,null,null,null,null,null,null,null,null,null,null,null,null,null,null,null,null,null,null,null,null,null,null,null,"　（評価とGPの関係：A=4,B=3,C=2,D=1,F=0,PはGPの該当",null,null,null,250152199102,"科学技術と生産","2件以上ヒット","技術者倫理 250227000170\n技術者倫理（機） 250152199102"]
[null,null,null,"〇",null,"工学のための地球科学",2,null,null,null,null,null,null,null,null,null,null,null,null,null,null,null,null,null,null,null,null,null,null,null,null,null,null,null,null,null,null,null,null,null,null,null,null,null,"　　外なので合計GP欄は空欄とする。）",null,null,null,250052100101,"工学のための地球科学"]
[null,null,null,"〇",null,"環境生体センシング技術",2,null,null,null,null,null,null,null,null,null,null,null,null,null,null,null,null,null,null,null,null,null,null,null,null,null,null,null,null,null,null,null,null,null,null,null,null,null,"４．修得単位数を要修得単位数と比較して単位取得状況",null,null,null,250152111102,"環境生体センシング技術"]
[null,"合計",null,null,null,null,16,null,{"$f":"SUM(I7:I14)","v":0},null,{"$f":"SUM(K7:K14)","v":0},null,{"$f":"SUM(M7:M14)","v":0},null,{"$f":"SUM(O7:O14)","v":0},null,{"$f":"SUM(Q7:Q14)","v":0},null,{"$f":"SUM(S7:S14)","v":0},null,{"$f":"SUM(U7:U14)","v":0},null,{"$f":"SUM(W7:W14)","v":0},null,{"$f":"SUM(Y7:Y14)","v":0},null,{"$f":"SUM(AA7:AA14)","v":0},null,{"$f":"SUM(AC7:AC14)","v":0},null,{"$f":"SUM(AE7:AE14)","v":0},null,{"$f":"SUM(AG7:AG14)","v":0},null,{"$f":"SUM(AI7:AI14)","v":0},null,{"$f":"SUM(AK7:AK14)","v":0},null,{"$f":"SUM(AM7:AM14)","v":0},{"$f":"SUM(H15,J15,L15,N15,P15,R15,T15,V15,X15,Z15,AB15,AD15,AF15,AH15,AJ15,AL15)","v":0},10,{"$f":"SUM(I15,K15,M15,O15,Q15,S15,U15,W15,Y15,AA15,AC15,AE15,AG15,AI15,AK15,AM15)","v":0},null,null,"    を把握する。",null,null,null,250421000130,{"$f":"B15","v":"合計"}]
[]
["建築学プログラム科目","工学基礎教育強化科目","○",null,null,"微分積分学Ⅱ",2,null,null,null,null,null,null,null,null,null,null,null,null,null,null,null,null,null,null,null,null,null,null,null,null,null,null,null,null,null,null,null,null,null,4,null,null,null,"※期をまたがって開講される科目は、成績の出された期に",null,null,null,250421000101,{"$f":"F17","v":"微分積分学Ⅱ"}]
[null,null,"○",null,null,"線形代数学Ⅱ",2,null,null,null,null,null,null,null,null,null,null,null,null,null,null,null,null,null,null,null,null,null,null,null,null,null,null,null,null,null,null,null,null,null,null,null,null,null,"  記入する。例えば通年の場合、後期に記入する。",null,null,null,250421000110,"線形代数学Ⅱ"]
[null,"就業力育成科目","○",null,null,"工学倫理",2,null,null,null,null,null,null,null,null,null,null,null,null,null,null,null,null,null,null,null,null,null,null,null,null,null,null,null,null,null,null,null,null,null,2,null,null,null,"※本表最下部の表の入力方法について"]
[null,"工学基盤情報科目","○",null,null,"建築の数理・情報 ",2,null,null,null,null,null,null,null,null,null,null,null,null,null,null,null,null,null,null,null,null,null,null,null,null,null,null,null,null,null,null,null,null,null,2,null,null,null,"　・P評価の単位数は当該期①の欄に、"]
[null,"総合力養成基礎科目","○",null,null,"文明と建築",1,null,null,null,null,null,null,null,null,null,null,null,null,null,null,null,null,null,null,null,null,null,null,null,null,null,null,null,null,null,null,null,null,null,8,null,null,null,"　・F評価の単位数は当該期②の欄に、",null,null,null,259752111301,{"$f":"#REF!","v":{"$error":"#REF!"}}]
[null,null,"○",null,null,"造形基礎",1,null,null,null,null,null,null,null,null,null,null,null,null,null,null,null,null,null,null,null,null,null,null,null,null,null,null,null,null,null,null,null,null,null,null,null,null,null,"　・評価F科目の再履修での修得単位数は当該期③の欄に",null,null,null,250152111112,{"$f":"#REF!","v":{"$error":"#REF!"}}]
[null,null,"○",null,null,"人間行動と建築空間",2,null,null,null,null,null,null,null,null,null,null,null,null,null,null,null,null,null,null,null,null,null,null,null,null,null,null,null,null,null,null,null,null,null,null,null,null,null,"　　入力する。なお、②には再履修の科目は含まない。",null,null,null,259752111402,{"$f":"F20","v":"建築の数理・情報 "}]
[null,null,"○",null,null,"建築の様式と技術の歴史",2,null,null,null,null,null,null,null,null,null,null,null,null,null,null,null,null,null,null,null,null,null,null,null,null,null,null,null,null,null,null,null,null,null,null,null,null,null,"※評価Fの科目を再履修して単位を修得した場合の入力方"]
[null,null,"○",null,null,"現代社会の都市・地域計画論",2,null,null,null,null,null,null,null,null,null,null,null,null,null,null,null,null,null,null,null,null,null,null,null,null,null,null,null,null,null,null,null,null,null,null,null,null,null,"  法について",null,null,null,250421000260,{"$f":"F22","v":"造形基礎"}]
[null,null,null,"○A群",null,"現代の地域施設計画",2,null,null,null,null,null,null,null,null,null,null,null,null,null,null,null,null,null,null,null,null,null,null,null,null,null,null,null,null,null,null,null,null,null,"5以上",null,null,null,"  上記１～３の手順で入力する。"]
[null,null,null,"○A群",null,"学外実習",1,null,null,null,null,null,null,null,null,null,null,null,null,null,null,null,null,null,null,null,null,null,null,null,null,null,null,null,null,null,null,null,null,null,null,null,null,null,"※既修得単位（D以上）の科目を再履修して単位を"]
[null,null,null,"○A群",null,"地域環境の歴史",2,null,null,null,null,null,null,null,null,null,null,null,null,null,null,null,null,null,null,null,null,null,null,null,null,null,null,null,null,null,null,null,null,null,null,null,null,null,"　修得した場合の入力方法について"]
[null,null,null,"○A群",null,"デジタルデザインの応用",1,null,null,null,null,null,null,null,null,null,null,null,null,null,null,null,null,null,null,null,null,null,null,null,null,null,null,null,null,null,null,null,null,null,null,null,null,null,"　今期の分を上記1～3の手順で入力した後、",null,null,null,250152113102,{"$f":"F26","v":"現代の地域施設計画"}]
[null,null,null,"○A群",null,"社会と建築デザイン",2,null,null,null,null,null,null,null,null,null,null,null,null,null,null,null,null,null,null,null,null,null,null,null,null,null,null,null,null,null,null,null,null,null,null,null,null,null,"  過去の評価（黄色枠）と合計GP（灰色枠）"]
[null,null,"合計",null,null,null,{"$f":"SUM(G26:G30)","v":8},{"$f":"SUMIF(H26:H30,\"<=D\",$G26:$G30)+SUMIF(H26:H30,\"=P\",$G26:$G30)","v":0},{"$f":"SUM(I26:I30)","v":0},{"$f":"SUMIF(J26:J30,\"<=D\",$G26:$G30)+SUMIF(J26:J30,\"=P\",$G26:$G30)","v":0},{"$f":"SUM(K26:K30)","v":0},{"$f":"SUMIF(L26:L30,\"<=D\",$G26:$G30)+SUMIF(L26:L30,\"=P\",$G26:$G30)","v":0},{"$f":"SUM(M26:M30)","v":0},{"$f":"SUMIF(N26:N30,\"<=D\",$G26:$G30)+SUMIF(N26:N30,\"=P\",$G26:$G30)","v":0},{"$f":"SUM(O26:O30)","v":0},{"$f":"SUMIF(P26:P30,\"<=D\",$G26:$G30)+SUMIF(P26:P30,\"=P\",$G26:$G30)","v":0},{"$f":"SUM(Q26:Q30)","v":0},{"$f":"SUMIF(R26:R30,\"<=D\",$G26:$G30)+SUMIF(R26:R30,\"=P\",$G26:$G30)","v":0},{"$f":"SUM(S26:S30)","v":0},{"$f":"SUMIF(T26:T30,\"<=D\",$G26:$G30)+SUMIF(T26:T30,\"=P\",$G26:$G30)","v":0},{"$f":"SUM(U26:U30)","v":0},{"$f":"SUMIF(V26:V30,\"<=D\",$G26:$G30)+SUMIF(V26:V30,\"=P\",$G26:$G30)","v":0},{"$f":"SUM(W26:W30)","v":0},{"$f":"SUMIF(X26:X30,\"<=D\",$G26:$G30)+SUMIF(X26:X30,\"=P\",$G26:$G30)","v":0},{"$f":"SUM(Y26:Y30)","v":0},{"$f":"SUMIF(Z26:Z30,\"<=D\",$G26:$G30)+SUMIF(Z26:Z30,\"=P\",$G26:$G30)","v":0},{"$f":"SUM(AA26:AA30)","v":0},{"$f":"SUMIF(AB26:AB30,\"<=D\",$G26:$G30)+SUMIF(AB26:AB30,\"=P\",$G26:$G30)","v":0},{"$f":"SUM(AC26:AC30)","v":0},{"$f":"SUMIF(AD26:AD30,\"<=D\",$G26:$G30)+SUMIF(AD26:AD30,\"=P\",$G26:$G30)","v":0},{"$f":"SUM(AE26:AE30)","v":0},{"$f":"SUMIF(AF26:AF30,\"<=D\",$G26:$G30)+SUMIF(AF26:AF30,\"=P\",$G26:$G30)","v":0},{"$f":"SUM(AG26:AG30)","v":0},{"$f":"SUMIF(AH26:AH30,\"<=D\",$G26:$G30)+SUMIF(AH26:AH30,\"=P\",$G26:$G30)","v":0},{"$f":"SUM(AI26:AI30)","v":0},{"$f":"SUMIF(AJ26:AJ30,\"<=D\",$G26:$G30)+SUMIF(AJ26:AJ30,\"=P\",$G26:$G30)","v":0},{"$f":"SUM(AK26:AK30)","v":0},{"$f":"SUMIF(AL26:AL30,\"<=D\",$G26:$G30)+SUMIF(AL26:AL30,\"=P\",$G26:$G30)","v":0},{"$f":"SUM(AM26:AM30)","v":0}]
[null,"総合力養成\n実践科目","○",null,null,"建築設計Ⅰ",2,null,null,null,null,null,null,null,null,null,null,null,null,null,null,null,null,null,null,null,null,null,null,null,null,null,null,null,null,null,null,null,null,null,10,null,null,null,"　を削除し、過去のオレンジ枠の合計修得単位数"]
[null,null,"○",null,null,"建築設計Ⅱ",2,null,null,null,null,null,null,null,null,null,null,null,null,null,null,null,null,null,null,null,null,null,null,null,null,null,null,null,null,null,null,null,null,null,null,null,null,null,"　から今期再履修で修得した単位数を引いた値を"]
[null,null,"○",null,null,"建築設計Ⅲ",2,null,null,null,null,null,null,null,null,null,null,null,null,null,null,null,null,null,null,null,null,null,null,null,null,null,null,null,null,null,null,null,null,null,null,null,null,null,"　過去のオレンジ枠の合計修得単位数に再入力する。",null,null,null,250421000260,{"$f":"F30","v":"社会と建築デザイン"}]
[null,null,"○",null,null,"建築設計Ⅳ",2]
[null,null,"○",null,null,"卒業設計",2]
[null,"分野基盤科目 ","○",null,null,"英語Ⅴ",2,null,null,null,null,null,null,null,null,null,null,null,null,null,null,null,null,null,null,null,null,null,null,null,null,null,null,null,null,null,null,null,null,null,42,null,null,null,"STEP２"]
[null,null,"○",null,null,"英語Ⅵ",2,null,null,null,null,null,null,null,null,null,null,null,null,null,null,null,null,null,null,null,null,null,null,null,null,null,null,null,null,null,null,null,null,null,null,null,null,null,"累積GPAの値を学業成績証明書と一致するかチェックする。",null,null,null,250152113102,{"$f":"F35","v":"建築設計Ⅳ"}]
[null,null,"○",null,null,"建築計画基礎演習",1,null,null,null,null,null,null,null,null,null,null,null,null,null,null,null,null,null,null,null,null,null,null,null,null,null,null,null,null,null,null,null,null,null,null,null,null,null,"区分ごとの単位修得状況の入力が終了した後に、シート"]
[null,null,"○",null,null,"設計基礎Ⅰ",1,null,null,null,null,null,null,null,null,null,null,null,null,null,null,null,null,null,null,null,null,null,null,null,null,null,null,null,null,null,null,null,null,null,null,null,null,null,"右下赤枠の「累積GPA」の値が、学業成績証明書に記載されて"]
[null,null,"○",null,null,"建築構造のしくみ",2,null,null,null,null,null,null,null,null,null,null,null,null,null,null,null,null,null,null,null,null,null,null,null,null,null,null,null,null,null,null,null,null,null,null,null,null,null,"いる累積GPAの値と一致しているかチェックし、一致"]
[null,null,"○",null,null,"設計基礎Ⅱ",2,null,null,null,null,null,null,null,null,null,null,null,null,null,null,null,null,null,null,null,null,null,null,null,null,null,null,null,null,null,null,null,null,null,null,null,null,null,"していない場合はSTEP１に戻り、入力値に間違いが"]
[null,null,"○",null,null,"建築実験計画",2,null,null,null,null,null,null,null,null,null,null,null,null,null,null,null,null,null,null,null,null,null,null,null,null,null,null,null,null,null,null,null,null,null,null,null,null,null,"ないか見直し、正しく入力する。",null,null,null,250152113102,{"$f":"F40","v":"設計基礎Ⅰ"}]
[null,null,"○",null,null,"環境計画Ⅰ",2]
[null,null,"○",null,null,"構造力学Ⅰ",2,null,null,null,null,null,null,null,null,null,null,null,null,null,null,null,null,null,null,null,null,null,null,null,null,null,null,null,null,null,null,null,null,null,null,null,null,null,"（補足説明）",null,null,null,259752111301,{"$f":"F42","v":"設計基礎Ⅱ"}]
[null,null,"○",null,null,"建築構法",2,null,null,null,null,null,null,null,null,null,null,null,null,null,null,null,null,null,null,null,null,null,null,null,null,null,null,null,null,null,null,null,null,null,null,null,null,null,"※留年した場合は「期を増やす」欄で列を増やす。",null,null,null,250152111112,{"$f":"F43","v":"建築実験計画"}]
[null,null,"○",null,null,"環境工学Ⅰ",2,null,null,null,null,null,null,null,null,null,null,null,null,null,null,null,null,null,null,null,null,null,null,null,null,null,null,null,null,null,null,null,null,null,null,null,null,null,"※評価Pの科目については、GPおよびGPAの計算に含ま",null,null,null,259752111402,{"$f":"F44","v":"環境計画Ⅰ"}]
[null,null,"○",null,null,"構造力学Ⅱ",2,null,null,null,null,null,null,null,null,null,null,null,null,null,null,null,null,null,null,null,null,null,null,null,null,null,null,null,null,null,null,null,null,null,null,null,null,null,"　ない。しかしながら、進級・卒業要件の累積単位数"]
[null,null,"○",null,null,"建築材料",2,null,null,null,null,null,null,null,null,null,null,null,null,null,null,null,null,null,null,null,null,null,null,null,null,null,null,null,null,null,null,null,null,null,null,null,null,null,"　には含まれることがあるので、標準履修課程表で確認",null,null,null,250421000260,{"$f":"F46","v":"建築構法"}]
[null,null,"○",null,null,"設備計画Ⅰ",2,null,null,null,null,null,null,null,null,null,null,null,null,null,null,null,null,null,null,null,null,null,null,null,null,null,null,null,null,null,null,null,null,null,null,null,null,null,"　すること。（インターンシップ等）"]
[null,null,"○",null,null,"建築振動",2,null,null,null,null,null,null,null,null,null,null,null,null,null,null,null,null,null,null,null,null,null,null,null,null,null,null,null,null,null,null,null,null,null,null,null,null,null,"※随意科目については、GPおよびGPAの計算に含まれない。"]
[null,null,"○",null,null,"建築施工",2,null,null,null,null,null,null,null,null,null,null,null,null,null,null,null,null,null,null,null,null,null,null,null,null,null,null,null,null,null,null,null,null,null,null,null,null,null,"　また、進級・卒業要件にも含まれない。"]
[null,null,"○",null,null,"鉄筋コンクリート構造",2,null,null,null,null,null,null,null,null,null,null,null,null,null,null,null,null,null,null,null,null,null,null,null,null,null,null,null,null,null,null,null,null,null,null,null,null,null,null,null,null,null,250152113102,{"$f":"F50","v":"設備計画Ⅰ"}]
[null,null,"○",null,null,"鉄骨構造",2]
[null,null,"○",null,null,"建築未来学概論",1]
[null,null,"○",null,null,"建築法規",1]
[null,null,"○",null,null,"卒業論文",6,null,null,null,null,null,null,null,null,null,null,null,null,null,null,null,null,null,null,null,null,null,null,null,null,null,null,null,null,null,null,null,null,null,null,null,null,null,null,null,null,null,250421000260,{"$f":"F54","v":"鉄骨構造"}]
[null,null,"合計",null,null,null,{"$f":"SUM(G32:G57)","v":52},{"$f":"SUMIF(H17:H25,\"<=D\",$G17:$G25)+SUMIF(H32:H57,\"<=D\",$G32:$G57)+SUMIF(H17:H25,\"=P\",$G17:$G25)+SUMIF(H32:H57,\"=P\",$G32:$G57)","v":0},{"$f":"SUM(I17:I25)+SUM(I32:I57)","v":0},{"$f":"SUMIF(J17:J25,\"<=D\",$G17:$G25)+SUMIF(J32:J57,\"<=D\",$G32:$G57)+SUMIF(J17:J25,\"=P\",$G17:$G25)+SUMIF(J32:J57,\"=P\",$G32:$G57)","v":0},{"$f":"SUM(K17:K25)+SUM(K32:K57)","v":0},{"$f":"SUMIF(L17:L25,\"<=D\",$G17:$G25)+SUMIF(L32:L57,\"<=D\",$G32:$G57)+SUMIF(L17:L25,\"=P\",$G17:$G25)+SUMIF(L32:L57,\"=P\",$G32:$G57)","v":0},{"$f":"SUM(M17:M25)+SUM(M32:M57)","v":0},{"$f":"SUMIF(N17:N25,\"<=D\",$G17:$G25)+SUMIF(N32:N57,\"<=D\",$G32:$G57)+SUMIF(N17:N25,\"=P\",$G17:$G25)+SUMIF(N32:N57,\"=P\",$G32:$G57)","v":0},{"$f":"SUM(O17:O25)+SUM(O32:O57)","v":0},{"$f":"SUMIF(P17:P25,\"<=D\",$G17:$G25)+SUMIF(P32:P57,\"<=D\",$G32:$G57)+SUMIF(P17:P25,\"=P\",$G17:$G25)+SUMIF(P32:P57,\"=P\",$G32:$G57)","v":0},{"$f":"SUM(Q17:Q25)+SUM(Q32:Q57)","v":0},{"$f":"SUMIF(R17:R25,\"<=D\",$G17:$G25)+SUMIF(R32:R57,\"<=D\",$G32:$G57)+SUMIF(R17:R25,\"=P\",$G17:$G25)+SUMIF(R32:R57,\"=P\",$G32:$G57)","v":0},{"$f":"SUM(S17:S25)+SUM(S32:S57)","v":0},{"$f":"SUMIF(T17:T25,\"<=D\",$G17:$G25)+SUMIF(T32:T57,\"<=D\",$G32:$G57)+SUMIF(T17:T25,\"=P\",$G17:$G25)+SUMIF(T32:T57,\"=P\",$G32:$G57)","v":0},{"$f":"SUM(U17:U25)+SUM(U32:U57)","v":0},{"$f":"SUMIF(V17:V25,\"<=D\",$G17:$G25)+SUMIF(V32:V57,\"<=D\",$G32:$G57)+SUMIF(V17:V25,\"=P\",$G17:$G25)+SUMIF(V32:V57,\"=P\",$G32:$G57)","v":0},{"$f":"SUM(W17:W25)+SUM(W32:W57)","v":0},{"$f":"SUMIF(X17:X25,\"<=D\",$G17:$G25)+SUMIF(X32:X57,\"<=D\",$G32:$G57)+SUMIF(X17:X25,\"=P\",$G17:$G25)+SUMIF(X32:X57,\"=P\",$G32:$G57)","v":0},{"$f":"SUM(Y17:Y25)+SUM(Y32:Y57)","v":0},{"$f":"SUMIF(Z17:Z25,\"<=D\",$G17:$G25)+SUMIF(Z32:Z57,\"<=D\",$G32:$G57)+SUMIF(Z17:Z25,\"=P\",$G17:$G25)+SUMIF(Z32:Z57,\"=P\",$G32:$G57)","v":0},{"$f":"SUM(AA17:AA25)+SUM(AA32:AA57)","v":0},{"$f":"SUMIF(AB17:AB25,\"<=D\",$G17:$G25)+SUMIF(AB32:AB57,\"<=D\",$G32:$G57)+SUMIF(AB17:AB25,\"=P\",$G17:$G25)+SUMIF(AB32:AB57,\"=P\",$G32:$G57)","v":0},{"$f":"SUM(AC17:AC25)+SUM(AC32:AC57)","v":0},{"$f":"SUMIF(AD17:AD25,\"<=D\",$G17:$G25)+SUMIF(AD32:AD57,\"<=D\",$G32:$G57)+SUMIF(AD17:AD25,\"=P\",$G17:$G25)+SUMIF(AD32:AD57,\"=P\",$G32:$G57)","v":0},{"$f":"SUM(AE17:AE25)+SUM(AE32:AE57)","v":0},{"$f":"SUMIF(AF17:AF25,\"<=D\",$G17:$G25)+SUMIF(AF32:AF57,\"<=D\",$G32:$G57)+SUMIF(AF17:AF25,\"=P\",$G17:$G25)+SUMIF(AF32:AF57,\"=P\",$G32:$G57)","v":0},{"$f":"SUM(AG17:AG25)+SUM(AG32:AG57)","v":0},{"$f":"SUMIF(AH17:AH25,\"<=D\",$G17:$G25)+SUMIF(AH32:AH57,\"<=D\",$G32:$G57)+SUMIF(AH17:AH25,\"=P\",$G17:$G25)+SUMIF(AH32:AH57,\"=P\",$G32:$G57)","v":0},{"$f":"SUM(AI17:AI25)+SUM(AI32:AI57)","v":0},{"$f":"SUMIF(AJ17:AJ25,\"<=D\",$G17:$G25)+SUMIF(AJ32:AJ57,\"<=D\",$G32:$G57)+SUMIF(AJ17:AJ25,\"=P\",$G17:$G25)+SUMIF(AJ32:AJ57,\"=P\",$G32:$G57)","v":0},{"$f":"SUM(AK17:AK25)+SUM(AK32:AK57)","v":0},{"$f":"SUMIF(AL17:AL25,\"<=D\",$G17:$G25)+SUMIF(AL32:AL57,\"<=D\",$G32:$G57)+SUMIF(AL17:AL25,\"=P\",$G17:$G25)+SUMIF(AL32:AL57,\"=P\",$G32:$G57)","v":0},{"$f":"SUM(AM17:AM25)+SUM(AM32:AM57)","v":0}]
[null,"分野専門科目",null,"○B群",null,"環境計画Ⅱ",2,null,null,null,null,null,null,null,null,null,null,null,null,null,null,null,null,null,null,null,null,null,null,null,null,null,null,null,null,null,null,null,null,null,"4以上"]
[null,null,null,"○B群",null,"環境工学Ⅱ",2,null,null,null,null,null,null,null,null,null,null,null,null,null,null,null,null,null,null,null,null,null,null,null,null,null,null,null,null,null,null,null,null,null,null,null,null,null,null,null,null,null,250152113102,{"$f":"F56","v":"建築法規"}]
[null,null,null,"○B群",null,"設備計画Ⅱ",2]
[null,null,null,"○B群",null,"設備計画演習",1]
[null,null,"合計",null,null,null,{"$f":"SUM(G59:G62)","v":7},{"$f":"SUMIF(H59:H62,\"<=D\",$G59:$G62)+SUMIF(H59:H62,\"=P\",$G59:$G62)","v":0},{"$f":"SUM(I59:I62)","v":0},{"$f":"SUMIF(J59:J62,\"<=D\",$G59:$G62)+SUMIF(J59:J62,\"=P\",$G59:$G62)","v":0},{"$f":"SUM(K59:K62)","v":0},{"$f":"SUMIF(L59:L62,\"<=D\",$G59:$G62)+SUMIF(L59:L62,\"=P\",$G59:$G62)","v":0},{"$f":"SUM(M59:M62)","v":0},{"$f":"SUMIF(N59:N62,\"<=D\",$G59:$G62)+SUMIF(N59:N62,\"=P\",$G59:$G62)","v":0},{"$f":"SUM(O59:O62)","v":0},{"$f":"SUMIF(P59:P62,\"<=D\",$G59:$G62)+SUMIF(P59:P62,\"=P\",$G59:$G62)","v":0},{"$f":"SUM(Q59:Q62)","v":0},{"$f":"SUMIF(R59:R62,\"<=D\",$G59:$G62)+SUMIF(R59:R62,\"=P\",$G59:$G62)","v":0},{"$f":"SUM(S59:S62)","v":0},{"$f":"SUMIF(T59:T62,\"<=D\",$G59:$G62)+SUMIF(T59:T62,\"=P\",$G59:$G62)","v":0},{"$f":"SUM(U59:U62)","v":0},{"$f":"SUMIF(V59:V62,\"<=D\",$G59:$G62)+SUMIF(V59:V62,\"=P\",$G59:$G62)","v":0},{"$f":"SUM(W59:W62)","v":0},{"$f":"SUMIF(X59:X62,\"<=D\",$G59:$G62)+SUMIF(X59:X62,\"=P\",$G59:$G62)","v":0},{"$f":"SUM(Y59:Y62)","v":0},{"$f":"SUMIF(Z59:Z62,\"<=D\",$G59:$G62)+SUMIF(Z59:Z62,\"=P\",$G59:$G62)","v":0},{"$f":"SUM(AA59:AA62)","v":0},{"$f":"SUMIF(AB59:AB62,\"<=D\",$G59:$G62)+SUMIF(AB59:AB62,\"=P\",$G59:$G62)","v":0},{"$f":"SUM(AC59:AC62)","v":0},{"$f":"SUMIF(AD59:AD62,\"<=D\",$G59:$G62)+SUMIF(AD59:AD62,\"=P\",$G59:$G62)","v":0},{"$f":"SUM(AE59:AE62)","v":0},{"$f":"SUMIF(AF59:AF62,\"<=D\",$G59:$G62)+SUMIF(AF59:AF62,\"=P\",$G59:$G62)","v":0},{"$f":"SUM(AG59:AG62)","v":0},{"$f":"SUMIF(AH59:AH62,\"<=D\",$G59:$G62)+SUMIF(AH59:AH62,\"=P\",$G59:$G62)","v":0},{"$f":"SUM(AI59:AI62)","v":0},{"$f":"SUMIF(AJ59:AJ62,\"<=D\",$G59:$G62)+SUMIF(AJ59:AJ62,\"=P\",$G59:$G62)","v":0},{"$f":"SUM(AK59:AK62)","v":0},{"$f":"SUMIF(AL59:AL62,\"<=D\",$G59:$G62)+SUMIF(AL59:AL62,\"=P\",$G59:$G62)","v":0},{"$f":"SUM(AM59:AM62)","v":0}]
[null,null,null,"○C群",null,"構造力学演習Ⅰ",1,null,null,null,null,null,null,null,null,null,null,null,null,null,null,null,null,null,null,null,null,null,null,null,null,null,null,null,null,null,null,null,null,null,6]
[null,null,null,"○C群",null,"構造力学演習Ⅱ",1]
[null,null,null,"○C群",null,"建築材料の科学",2,null,null,null,null,null,null,null,null,null,null,null,null,null,null,null,null,null,null,null,null,null,null,null,null,null,null,null,null,null,null,null,null,null,null,null,null,null,null,null,null,null,250152113102,{"$f":"#REF!","v":{"$error":"#REF!"}}]
[null,null,null,"○C群",null,"プログラミング論",1]
[null,null,null,"○C群",null,"基礎構造",2,null,null,null,null,null,null,null,null,null,null,null,null,null,null,null,null,null,null,null,null,null,null,null,null,null,null,null,null,null,null,null,null,null,null,null,null,null,null,null,null,null,259752111301,{"$f":"F59","v":"環境計画Ⅱ"}]
[null,null,null,"○C群",null,"構造設計",2,null,null,null,null,null,null,null,null,null,null,null,null,null,null,null,null,null,null,null,null,null,null,null,null,null,null,null,null,null,null,null,null,null,null,null,null,null,null,null,null,null,250152111112,{"$f":"F60","v":"環境工学Ⅱ"}]
[null,null,null,"○C群",null,"鉄筋コンクリート構造演習",1,null,null,null,null,null,null,null,null,null,null,null,null,null,null,null,null,null,null,null,null,null,null,null,null,null,null,null,null,null,null,null,null,null,null,null,null,null,null,null,null,null,259752111402,{"$f":"F61","v":"設備計画Ⅱ"}]
[null,null,null,"○C群",null,"建築の職能と制度",1]
[null,null,null,"○C群",null,"インターンシップ",1,null,null,null,null,null,null,null,null,null,null,null,null,null,null,null,null,null,null,null,null,null,null,null,null,null,null,null,null,null,null,null,null,null,null,null,null,null,null,null,null,null,250421000260,{"$f":"F64","v":"構造力学演習Ⅰ"}]
[null,null,"合計",null,null,null,{"$f":"SUM(G64:G72)","v":12},{"$f":"SUMIF(H64:H72,\"<=D\",$G64:$G72)+SUMIF(H64:H72,\"=P\",$G64:$G72)","v":0},{"$f":"SUM(I64:I72)","v":0},{"$f":"SUMIF(J64:J72,\"<=D\",$G64:$G72)+SUMIF(J64:J72,\"=P\",$G64:$G72)","v":0},{"$f":"SUM(K64:K72)","v":0},{"$f":"SUMIF(L64:L72,\"<=D\",$G64:$G72)+SUMIF(L64:L72,\"=P\",$G64:$G72)","v":0},{"$f":"SUM(M64:M72)","v":0},{"$f":"SUMIF(N64:N72,\"<=D\",$G64:$G72)+SUMIF(N64:N72,\"=P\",$G64:$G72)","v":0},{"$f":"SUM(O64:O72)","v":0},{"$f":"SUMIF(P64:P72,\"<=D\",$G64:$G72)+SUMIF(P64:P72,\"=P\",$G64:$G72)","v":0},{"$f":"SUM(Q64:Q72)","v":0},{"$f":"SUMIF(R64:R72,\"<=D\",$G64:$G72)+SUMIF(R64:R72,\"=P\",$G64:$G72)","v":0},{"$f":"SUM(S64:S72)","v":0},{"$f":"SUMIF(T64:T72,\"<=D\",$G64:$G72)+SUMIF(T64:T72,\"=P\",$G64:$G72)","v":0},{"$f":"SUM(U64:U72)","v":0},{"$f":"SUMIF(V64:V72,\"<=D\",$G64:$G72)+SUMIF(V64:V72,\"=P\",$G64:$G72)","v":0},{"$f":"SUM(W64:W72)","v":0},{"$f":"SUMIF(X64:X72,\"<=D\",$G64:$G72)+SUMIF(X64:X72,\"=P\",$G64:$G72)","v":0},{"$f":"SUM(Y64:Y72)","v":0},{"$f":"SUMIF(Z64:Z72,\"<=D\",$G64:$G72)+SUMIF(Z64:Z72,\"=P\",$G64:$G72)","v":0},{"$f":"SUM(AA64:AA72)","v":0},{"$f":"SUMIF(AB64:AB72,\"<=D\",$G64:$G72)+SUMIF(AB64:AB72,\"=P\",$G64:$G72)","v":0},{"$f":"SUM(AC64:AC72)","v":0},{"$f":"SUMIF(AD64:AD72,\"<=D\",$G64:$G72)+SUMIF(AD64:AD72,\"=P\",$G64:$G72)","v":0},{"$f":"SUM(AE64:AE72)","v":0},{"$f":"SUMIF(AF64:AF72,\"<=D\",$G64:$G72)+SUMIF(AF64:AF72,\"=P\",$G64:$G72)","v":0},{"$f":"SUM(AG64:AG72)","v":0},{"$f":"SUMIF(AH64:AH72,\"<=D\",$G64:$G72)+SUMIF(AH64:AH72,\"=P\",$G64:$G72)","v":0},{"$f":"SUM(AI64:AI72)","v":0},{"$f":"SUMIF(AJ64:AJ72,\"<=D\",$G64:$G72)+SUMIF(AJ64:AJ72,\"=P\",$G64:$G72)","v":0},{"$f":"SUM(AK64:AK72)","v":0},{"$f":"SUMIF(AL64:AL72,\"<=D\",$G64:$G72)+SUMIF(AL64:AL72,\"=P\",$G64:$G72)","v":0},{"$f":"SUM(AM64:AM72)","v":0}]
[null,"合計",null,null,null,null,19,null,{"$f":"I58+I31+I63+I73","v":0},null,{"$f":"K58+K31+K63+K73","v":0},null,{"$f":"M58+M31+M63+M73","v":0},null,{"$f":"O58+O31+O63+O73","v":0},null,{"$f":"Q58+Q31+Q63+Q73","v":0},null,{"$f":"S58+S31+S63+S73","v":0},null,{"$f":"U58+U31+U63+U73","v":0},null,{"$f":"W58+W31+W63+W73","v":0},null,{"$f":"Y58+Y31+Y63+Y73","v":0},null,{"$f":"AA58+AA31+AA63+AA73","v":0},null,{"$f":"AC58+AC31+AC63+AC73","v":0},null,{"$f":"AE58+AE31+AE63+AE73","v":0},null,{"$f":"AG58+AG31+AG63+AG73","v":0},null,{"$f":"AI58+AI31+AI63+AI73","v":0},null,{"$f":"AK58+AK31+AK63+AK73","v":0},null,{"$f":"AM58+AM31+AM63+AM73","v":0},{"$f":"SUM(H74,J74,L74,N74,P74,R74,T74,V74,X74,Z74,AB74,AD74,AF74,AH74,AJ74,AL74)","v":0},88,{"$f":"SUM(I74,K74,M74,O74,Q74,S74,U74,W74,Y74,AA74,AC74,AE74,AG74,AI74,AK74,AM74)","v":0}]
[]
["専門教育科目合計（単位数とGP）",null,null,null,null,null,null,{"$f":"SUM(H15,H74)","v":0},0,0,0,0,0,0,0,0,0,0,0,0,0,0,0,0,0,0,0,0,0,0,0,0,0,0,0,0,0,0,0,{"$f":"SUM(H76,J76,L76,N76,P76,R76,T76,V76,X76,Z76,AB76,AD76,AF76,AH76,AJ76,AL76)","v":0},98,{"$f":"SUM(I76,K76,M76,O76,Q76,S76,U76,W76,Y76,AA76,AC76,AE76,AG76,AI76,AK76,AM76)","v":0}]
["(共通＋専門)教育科目合計（単位数とGP）",null,null,null,null,null,null,{"$f":"'単位修得状況確認表（共通教育科目，留学生）'!G23+H76","v":0},{"$f":"'単位修得状況確認表（共通教育科目，留学生）'!H23+I76","v":0},{"$f":"'単位修得状況確認表（共通教育科目，留学生）'!I23+J76","v":0},{"$f":"'単位修得状況確認表（共通教育科目，留学生）'!J23+K76","v":0},{"$f":"'単位修得状況確認表（共通教育科目，留学生）'!K23+L76","v":0},{"$f":"'単位修得状況確認表（共通教育科目，留学生）'!L23+M76","v":0},{"$f":"'単位修得状況確認表（共通教育科目，留学生）'!M23+N76","v":0},{"$f":"'単位修得状況確認表（共通教育科目，留学生）'!N23+O76","v":0},{"$f":"'単位修得状況確認表（共通教育科目，留学生）'!O23+P76","v":0},{"$f":"'単位修得状況確認表（共通教育科目，留学生）'!P23+Q76","v":0},{"$f":"'単位修得状況確認表（共通教育科目，留学生）'!Q23+R76","v":0},{"$f":"'単位修得状況確認表（共通教育科目，留学生）'!R23+S76","v":0},{"$f":"'単位修得状況確認表（共通教育科目，留学生）'!S23+T76","v":0},{"$f":"'単位修得状況確認表（共通教育科目，留学生）'!T23+U76","v":0},{"$f":"'単位修得状況確認表（共通教育科目，留学生）'!U23+V76","v":0},{"$f":"'単位修得状況確認表（共通教育科目，留学生）'!V23+W76","v":0},{"$f":"'単位修得状況確認表（共通教育科目，留学生）'!W23+X76","v":0},{"$f":"'単位修得状況確認表（共通教育科目，留学生）'!X23+Y76","v":0},{"$f":"'単位修得状況確認表（共通教育科目，留学生）'!Y23+Z76","v":0},{"$f":"'単位修得状況確認表（共通教育科目，留学生）'!Z23+AA76","v":0},{"$f":"'単位修得状況確認表（共通教育科目，留学生）'!AA23+AB76","v":0},{"$f":"'単位修得状況確認表（共通教育科目，留学生）'!AB23+AC76","v":0},{"$f":"'単位修得状況確認表（共通教育科目，留学生）'!AC23+AD76","v":0},{"$f":"'単位修得状況確認表（共通教育科目，留学生）'!AD23+AE76","v":0},{"$f":"'単位修得状況確認表（共通教育科目，留学生）'!AE23+AF76","v":0},{"$f":"'単位修得状況確認表（共通教育科目，留学生）'!AF23+AG76","v":0},{"$f":"'単位修得状況確認表（共通教育科目，留学生）'!AG23+AH76","v":0},{"$f":"'単位修得状況確認表（共通教育科目，留学生）'!AH23+AI76","v":0},{"$f":"'単位修得状況確認表（共通教育科目，留学生）'!AI23+AJ76","v":0},{"$f":"'単位修得状況確認表（共通教育科目，留学生）'!AJ23+AK76","v":0},{"$f":"'単位修得状況確認表（共通教育科目，留学生）'!AK23+AL76","v":0},{"$f":"'単位修得状況確認表（共通教育科目，留学生）'!AL23+AM76","v":0},{"$f":"SUM(H77,J77,L77,N77,P77,R77,T77,V77,X77,Z77,AB77,AD77,AF77,AH77,AJ77,AL77)","v":0},130,{"$f":"SUM(I77,K77,M77,O77,Q77,S77,U77,W77,Y77,AA77,AC77,AE77,AG77,AI77,AK77,AM77)","v":0}]
["※","「期を増やす」欄により学年を４年間増やすことが可。",null,null,null,null,null,null,null,null,null,null,null,null,null,null,null,null,null,null,null,null,null,null,null,null,null,null,null,null,null,null,null,null,null,null,null,null,null,"累積GPA",null,{"$f":"IF(AN77-AN80>0,AP77/(AN77-AN80-'単位修得状況確認表（共通教育科目，留学生）'!AM26+AN81+'単位修得状況確認表（共通教育科目，留学生）'!AM27-AN82-'単位修得状況確認表（共通教育科目，留学生）'!AM28),\"\")","v":""}]
[]
["①【専門教育科目】評価Pの単位数",null,null,null,null,null,null,null,null,null,null,null,null,null,null,null,null,null,null,null,null,null,null,null,null,null,null,null,null,null,null,null,null,null,null,null,null,null,null,{"$f":"SUM(H80:AM80)","v":0}]
["②【専門教育科目】不合格（評価F）の単位数",null,null,null,null,null,null,null,null,null,null,null,null,null,null,null,null,null,null,null,null,null,null,null,null,null,null,null,null,null,null,null,null,null,null,null,null,null,null,{"$f":"SUM(H81:AM81)","v":0}]
["③【専門教育科目】評価F科目の再履修での修得単位数",null,null,null,null,null,null,null,null,null,null,null,null,null,null,null,null,null,null,null,null,null,null,null,null,null,null,null,null,null,null,null,null,null,null,null,null,null,null,{"$f":"SUM(H82:AM82)","v":0}]

{"sheet":"累積グラフ","index":6,"n_rows":271,"n_cols":8,"rows_kept":271,"cut":false,"hidden":false,"merged":[[81,2,81,3],[3,6,3,7],[3,2,3,3],[3,4,3,5],[42,2,42,3],[42,4,42,5]]}
[]
[null,"共通教育科目（必修科目）"]
[]
[null,null,"初年次教育科目",null,"ｸﾞﾛｰﾊﾞﾙ教育科目",null,"日本語・日本事情科目"]
[null,null,"取得単位数","累積取得単位数","取得単位数","累積取得単位数","取得単位数","累積取得単位数"]
[null,"1期終了時",{"$f":"SUM('単位修得状況確認表（共通教育科目，留学生）'!G$7:G$11)","v":0},{"$f":"SUM(C$6:C6)","v":0},{"$f":"SUM('単位修得状況確認表（共通教育科目，留学生）'!G$12:G$13)","v":0},{"$f":"SUM(E$6:E6)","v":0},{"$f":"SUM('単位修得状況確認表（共通教育科目，留学生）'!G$14:G$15)","v":0},{"$f":"SUM(G$6:G6)","v":0}]
[null,"2期終了時",{"$f":"SUM('単位修得状況確認表（共通教育科目，留学生）'!I$7:I$11)","v":0},{"$f":"SUM(C$6:C7)","v":0},{"$f":"SUM('単位修得状況確認表（共通教育科目，留学生）'!I$12:I$13)","v":0},{"$f":"SUM(E$6:E7)","v":0},{"$f":"SUM('単位修得状況確認表（共通教育科目，留学生）'!I$14:I$15)","v":0},{"$f":"SUM(G$6:G7)","v":0}]
[null,"3期終了時",{"$f":"SUM('単位修得状況確認表（共通教育科目，留学生）'!K$7:K$11)","v":0},{"$f":"SUM(C$6:C8)","v":0},{"$f":"SUM('単位修得状況確認表（共通教育科目，留学生）'!K$12:K$13)","v":0},{"$f":"SUM(E$6:E8)","v":0},{"$f":"SUM('単位修得状況確認表（共通教育科目，留学生）'!K$14:K$15)","v":0},{"$f":"SUM(G$6:G8)","v":0}]
[null,"4期終了時",{"$f":"SUM('単位修得状況確認表（共通教育科目，留学生）'!M$7:M$11)","v":0},{"$f":"SUM(C$6:C9)","v":0},{"$f":"SUM('単位修得状況確認表（共通教育科目，留学生）'!M$12:M$13)","v":0},{"$f":"SUM(E$6:E9)","v":0},{"$f":"SUM('単位修得状況確認表（共通教育科目，留学生）'!M$14:M$15)","v":0},{"$f":"SUM(G$6:G9)","v":0}]
[null,"5期終了時",{"$f":"SUM('単位修得状況確認表（共通教育科目，留学生）'!O$7:O$11)","v":0},{"$f":"SUM(C$6:C10)","v":0},{"$f":"SUM('単位修得状況確認表（共通教育科目，留学生）'!O$12:O$13)","v":0},{"$f":"SUM(E$6:E10)","v":0},{"$f":"SUM('単位修得状況確認表（共通教育科目，留学生）'!O$14:O$15)","v":0},{"$f":"SUM(G$6:G10)","v":0}]
[null,"6期終了時",{"$f":"SUM('単位修得状況確認表（共通教育科目，留学生）'!Q$7:Q$11)","v":0},{"$f":"SUM(C$6:C11)","v":0},{"$f":"SUM('単位修得状況確認表（共通教育科目，留学生）'!Q$12:Q$13)","v":0},{"$f":"SUM(E$6:E11)","v":0},{"$f":"SUM('単位修得状況確認表（共通教育科目，留学生）'!Q$14:Q$15)","v":0},{"$f":"SUM(G$6:G11)","v":0}]
[null,"7期終了時",{"$f":"SUM('単位修得状況確認表（共通教育科目，留学生）'!S$7:S$11)","v":0},{"$f":"SUM(C$6:C12)","v":0},{"$f":"SUM('単位修得状況確認表（共通教育科目，留学生）'!S$12:S$13)","v":0},{"$f":"SUM(E$6:E12)","v":0},{"$f":"SUM('単位修得状況確認表（共通教育科目，留学生）'!S$14:S$15)","v":0},{"$f":"SUM(G$6:G12)","v":0}]
[null,"8期終了時",{"$f":"SUM('単位修得状況確認表（共通教育科目，留学生）'!U$7:U$11)","v":0},{"$f":"SUM(C$6:C13)","v":0},{"$f":"SUM('単位修得状況確認表（共通教育科目，留学生）'!U$12:U$13)","v":0},{"$f":"SUM(E$6:E13)","v":0},{"$f":"SUM('単位修得状況確認表（共通教育科目，留学生）'!U$14:U$15)","v":0},{"$f":"SUM(G$6:G13)","v":0}]
[null,"9期終了時",{"$f":"SUM('単位修得状況確認表（共通教育科目，留学生）'!W$7:W$11)","v":0},{"$f":"IF(SUM($C229:$C$236)=0,\"\",SUM(C$6:C14))","v":""},{"$f":"SUM('単位修得状況確認表（共通教育科目，留学生）'!W$12:W$13)","v":0},{"$f":"IF(SUM($C229:$C$236)=0,\"\",SUM(E$6:E14))","v":""},{"$f":"SUM('単位修得状況確認表（共通教育科目，留学生）'!W$14:W$15)","v":0},{"$f":"IF(SUM($C229:$C$236)=0,\"\",SUM(G$6:G14))","v":""}]
[null,"10期終了時",{"$f":"SUM('単位修得状況確認表（共通教育科目，留学生）'!Y$7:Y$11)","v":0},{"$f":"IF(SUM($C230:$C$236)=0,\"\",SUM(C$6:C15))","v":""},{"$f":"SUM('単位修得状況確認表（共通教育科目，留学生）'!Y$12:Y$13)","v":0},{"$f":"IF(SUM($C230:$C$236)=0,\"\",SUM(E$6:E15))","v":""},{"$f":"SUM('単位修得状況確認表（共通教育科目，留学生）'!Y$14:Y$15)","v":0},{"$f":"IF(SUM($C230:$C$236)=0,\"\",SUM(G$6:G15))","v":""}]
[null,"11期終了時",{"$f":"SUM('単位修得状況確認表（共通教育科目，留学生）'!AA$7:AA$11)","v":0},{"$f":"IF(SUM($C231:$C$236)=0,\"\",SUM(C$6:C16))","v":""},{"$f":"SUM('単位修得状況確認表（共通教育科目，留学生）'!AA$12:AA$13)","v":0},{"$f":"IF(SUM($C231:$C$236)=0,\"\",SUM(E$6:E16))","v":""},{"$f":"SUM('単位修得状況確認表（共通教育科目，留学生）'!AA$14:AA$15)","v":0},{"$f":"IF(SUM($C231:$C$236)=0,\"\",SUM(G$6:G16))","v":""}]
[null,"12期終了時",{"$f":"SUM('単位修得状況確認表（共通教育科目，留学生）'!AC$7:AC$11)","v":0},{"$f":"IF(SUM($C232:$C$236)=0,\"\",SUM(C$6:C17))","v":""},{"$f":"SUM('単位修得状況確認表（共通教育科目，留学生）'!AC$12:AC$13)","v":0},{"$f":"IF(SUM($C232:$C$236)=0,\"\",SUM(E$6:E17))","v":""},{"$f":"SUM('単位修得状況確認表（共通教育科目，留学生）'!AC$14:AC$15)","v":0},{"$f":"IF(SUM($C232:$C$236)=0,\"\",SUM(G$6:G17))","v":""}]
[null,"13期終了時",{"$f":"SUM('単位修得状況確認表（共通教育科目，留学生）'!AE$7:AE$11)","v":0},{"$f":"IF(SUM($C233:$C$236)=0,\"\",SUM(C$6:C18))","v":""},{"$f":"SUM('単位修得状況確認表（共通教育科目，留学生）'!AE$12:AE$13)","v":0},{"$f":"IF(SUM($C233:$C$236)=0,\"\",SUM(E$6:E18))","v":""},{"$f":"SUM('単位修得状況確認表（共通教育科目，留学生）'!AE$14:AE$15)","v":0},{"$f":"IF(SUM($C233:$C$236)=0,\"\",SUM(G$6:G18))","v":""}]
[null,"14期終了時",{"$f":"SUM('単位修得状況確認表（共通教育科目，留学生）'!AG$7:AG$11)","v":0},{"$f":"IF(SUM($C234:$C$236)=0,\"\",SUM(C$6:C19))","v":""},{"$f":"SUM('単位修得状況確認表（共通教育科目，留学生）'!AG$12:AG$13)","v":0},{"$f":"IF(SUM($C234:$C$236)=0,\"\",SUM(E$6:E19))","v":""},{"$f":"SUM('単位修得状況確認表（共通教育科目，留学生）'!AG$14:AG$15)","v":0},{"$f":"IF(SUM($C234:$C$236)=0,\"\",SUM(G$6:G19))","v":""}]
[null,"15期終了時",{"$f":"SUM('単位修得状況確認表（共通教育科目，留学生）'!AI$7:AI$11)","v":0},{"$f":"IF(SUM($C235:$C$236)=0,\"\",SUM(C$6:C20))","v":""},{"$f":"SUM('単位修得状況確認表（共通教育科目，留学生）'!AI$12:AI$13)","v":0},{"$f":"IF(SUM($C235:$C$236)=0,\"\",SUM(E$6:E20))","v":""},{"$f":"SUM('単位修得状況確認表（共通教育科目，留学生）'!AI$14:AI$15)","v":0},{"$f":"IF(SUM($C235:$C$236)=0,\"\",SUM(G$6:G20))","v":""}]
[null,"16期終了時",{"$f":"SUM('単位修得状況確認表（共通教育科目，留学生）'!AK$7:AK$11)","v":0},{"$f":"IF(SUM($C236:$C$236)=0,\"\",SUM(C$6:C21))","v":""},{"$f":"SUM('単位修得状況確認表（共通教育科目，留学生）'!AK$12:AK$13)","v":0},{"$f":"IF(SUM($C236:$C$236)=0,\"\",SUM(E$6:E21))","v":""},{"$f":"SUM('単位修得状況確認表（共通教育科目，留学生）'!AK$14:AK$15)","v":0},{"$f":"IF(SUM($C236:$C$236)=0,\"\",SUM(G$6:G21))","v":""}]
[]
[]
[]
[]
[]
[]
[]
[]
[]
[]
[]
[]
[]
[]
[]
[]
[]
[]
[]
[null,"共通教育科目（選択必修科目）"]
[]
[null,null,"教養教育科目",null,"教養活用科目"]
[null,null,"取得単位数","累積取得単位数","取得単位数","累積取得単位数"]
[null,"1期終了時",{"$f":"SUM('単位修得状況確認表（共通教育科目，留学生）'!G$17:G$19)","v":0},{"$f":"SUM(C$45:C45)","v":0},{"$f":"SUM('単位修得状況確認表（共通教育科目，留学生）'!G$20:G$21)","v":0},{"$f":"SUM(E$45:E45)","v":0}]
[null,"2期終了時",{"$f":"SUM('単位修得状況確認表（共通教育科目，留学生）'!I$17:I$19)","v":0},{"$f":"SUM(C$45:C46)","v":0},{"$f":"SUM('単位修得状況確認表（共通教育科目，留学生）'!I$20:I$21)","v":0},{"$f":"SUM(E$45:E46)","v":0}]
[null,"3期終了時",{"$f":"SUM('単位修得状況確認表（共通教育科目，留学生）'!K$17:K$19)","v":0},{"$f":"SUM(C$45:C47)","v":0},{"$f":"SUM('単位修得状況確認表（共通教育科目，留学生）'!K$20:K$21)","v":0},{"$f":"SUM(E$45:E47)","v":0}]
[null,"4期終了時",{"$f":"SUM('単位修得状況確認表（共通教育科目，留学生）'!M$17:M$19)","v":0},{"$f":"SUM(C$45:C48)","v":0},{"$f":"SUM('単位修得状況確認表（共通教育科目，留学生）'!M$20:M$21)","v":0},{"$f":"SUM(E$45:E48)","v":0}]
[null,"5期終了時",{"$f":"SUM('単位修得状況確認表（共通教育科目，留学生）'!O$17:O$19)","v":0},{"$f":"SUM(C$45:C49)","v":0},{"$f":"SUM('単位修得状況確認表（共通教育科目，留学生）'!O$20:O$21)","v":0},{"$f":"SUM(E$45:E49)","v":0}]
[null,"6期終了時",{"$f":"SUM('単位修得状況確認表（共通教育科目，留学生）'!Q$17:Q$19)","v":0},{"$f":"SUM(C$45:C50)","v":0},{"$f":"SUM('単位修得状況確認表（共通教育科目，留学生）'!Q$20:Q$21)","v":0},{"$f":"SUM(E$45:E50)","v":0}]
[null,"7期終了時",{"$f":"SUM('単位修得状況確認表（共通教育科目，留学生）'!S$17:S$19)","v":0},{"$f":"SUM(C$45:C51)","v":0},{"$f":"SUM('単位修得状況確認表（共通教育科目，留学生）'!S$20:S$21)","v":0},{"$f":"SUM(E$45:E51)","v":0}]
[null,"8期終了時",{"$f":"SUM('単位修得状況確認表（共通教育科目，留学生）'!U$17:U$19)","v":0},{"$f":"SUM(C$45:C52)","v":0},{"$f":"SUM('単位修得状況確認表（共通教育科目，留学生）'!U$20:U$21)","v":0},{"$f":"SUM(E$45:E52)","v":0}]
[null,"9期終了時",{"$f":"SUM('単位修得状況確認表（共通教育科目，留学生）'!W$17:W$19)","v":0},{"$f":"IF(SUM($C229:$C$236)=0,\"\",SUM(C$45:C53))","v":""},{"$f":"SUM('単位修得状況確認表（共通教育科目，留学生）'!W$20:W$21)","v":0},{"$f":"IF(SUM($C229:$C$236)=0,\"\",SUM(E$45:E53))","v":""}]
[null,"10期終了時",{"$f":"SUM('単位修得状況確認表（共通教育科目，留学生）'!Y$17:Y$19)","v":0},{"$f":"IF(SUM($C230:$C$236)=0,\"\",SUM(C$45:C54))","v":""},{"$f":"SUM('単位修得状況確認表（共通教育科目，留学生）'!Y$20:Y$21)","v":0},{"$f":"IF(SUM($C230:$C$236)=0,\"\",SUM(E$45:E54))","v":""}]
[null,"11期終了時",{"$f":"SUM('単位修得状況確認表（共通教育科目，留学生）'!AA$17:AA$19)","v":0},{"$f":"IF(SUM($C231:$C$236)=0,\"\",SUM(C$45:C55))","v":""},{"$f":"SUM('単位修得状況確認表（共通教育科目，留学生）'!AA$20:AA$21)","v":0},{"$f":"IF(SUM($C231:$C$236)=0,\"\",SUM(E$45:E55))","v":""}]
[null,"12期終了時",{"$f":"SUM('単位修得状況確認表（共通教育科目，留学生）'!AC$17:AC$19)","v":0},{"$f":"IF(SUM($C232:$C$236)=0,\"\",SUM(C$45:C56))","v":""},{"$f":"SUM('単位修得状況確認表（共通教育科目，留学生）'!AC$20:AC$21)","v":0},{"$f":"IF(SUM($C232:$C$236)=0,\"\",SUM(E$45:E56))","v":""}]
[null,"13期終了時",{"$f":"SUM('単位修得状況確認表（共通教育科目，留学生）'!AE$17:AE$19)","v":0},{"$f":"IF(SUM($C233:$C$236)=0,\"\",SUM(C$45:C57))","v":""},{"$f":"SUM('単位修得状況確認表（共通教育科目，留学生）'!AE$20:AE$21)","v":0},{"$f":"IF(SUM($C233:$C$236)=0,\"\",SUM(E$45:E57))","v":""}]
[null,"14期終了時",{"$f":"SUM('単位修得状況確認表（共通教育科目，留学生）'!AG$17:AG$19)","v":0},{"$f":"IF(SUM($C234:$C$236)=0,\"\",SUM(C$45:C58))","v":""},{"$f":"SUM('単位修得状況確認表（共通教育科目，留学生）'!AG$20:AG$21)","v":0},{"$f":"IF(SUM($C234:$C$236)=0,\"\",SUM(E$45:E58))","v":""}]
[null,"15期終了時",{"$f":"SUM('単位修得状況確認表（共通教育科目，留学生）'!AI$17:AI$19)","v":0},{"$f":"IF(SUM($C235:$C$236)=0,\"\",SUM(C$45:C59))","v":""},{"$f":"SUM('単位修得状況確認表（共通教育科目，留学生）'!AI$20:AI$21)","v":0},{"$f":"IF(SUM($C235:$C$236)=0,\"\",SUM(E$45:E59))","v":""}]
[null,"16期終了時",{"$f":"SUM('単位修得状況確認表（共通教育科目，留学生）'!AK$17:AK$19)","v":0},{"$f":"IF(SUM($C236:$C$236)=0,\"\",SUM(C$45:C60))","v":""},{"$f":"SUM('単位修得状況確認表（共通教育科目，留学生）'!AK$20:AK$21)","v":0},{"$f":"IF(SUM($C236:$C$236)=0,\"\",SUM(E$45:E60))","v":""}]
[]
[]
[]
[]
[]
[]
[]
[]
[]
[]
[]
[]
[]
[]
[]
[]
[]
[]
[]
[null,"専門教育科目（共通科目）"]
[]
[null,null,"必修科目"]
[null,null,"取得単位数","累積取得単位数"]
[null,"1期終了時",{"$f":"'単位修得状況確認表（専門教育科目）'!H$15","v":0},{"$f":"SUM(C$84:C84)","v":0}]
[null,"2期終了時",{"$f":"'単位修得状況確認表（専門教育科目）'!J$15","v":0},{"$f":"SUM(C$84:C85)","v":0}]
[null,"3期終了時",{"$f":"'単位修得状況確認表（専門教育科目）'!L$15","v":0},{"$f":"SUM(C$84:C86)","v":0}]
[null,"4期終了時",{"$f":"'単位修得状況確認表（専門教育科目）'!N$15","v":0},{"$f":"SUM(C$84:C87)","v":0}]
[null,"5期終了時",{"$f":"'単位修得状況確認表（専門教育科目）'!P$15","v":0},{"$f":"SUM(C$84:C88)","v":0}]
[null,"6期終了時",{"$f":"'単位修得状況確認表（専門教育科目）'!R$15","v":0},{"$f":"SUM(C$84:C89)","v":0}]
[null,"7期終了時",{"$f":"'単位修得状況確認表（専門教育科目）'!T$15","v":0},{"$f":"SUM(C$84:C90)","v":0}]
[null,"8期終了時",{"$f":"'単位修得状況確認表（専門教育科目）'!V$15","v":0},{"$f":"SUM(C$84:C91)","v":0}]
[null,"9期終了時",{"$f":"'単位修得状況確認表（専門教育科目）'!X$15","v":0},{"$f":"IF(SUM($C229:$C$236)=0,\"\",SUM(C$84:C92))","v":""}]
[null,"10期終了時",{"$f":"'単位修得状況確認表（専門教育科目）'!Z$15","v":0},{"$f":"IF(SUM($C230:$C$236)=0,\"\",SUM(C$84:C93))","v":""}]
[null,"11期終了時",{"$f":"'単位修得状況確認表（専門教育科目）'!AB$15","v":0},{"$f":"IF(SUM($C231:$C$236)=0,\"\",SUM(C$84:C94))","v":""}]
[null,"12期終了時",{"$f":"'単位修得状況確認表（専門教育科目）'!AD$15","v":0},{"$f":"IF(SUM($C232:$C$236)=0,\"\",SUM(C$84:C95))","v":""}]
[null,"13期終了時",{"$f":"'単位修得状況確認表（専門教育科目）'!AF$15","v":0},{"$f":"IF(SUM($C233:$C$236)=0,\"\",SUM(C$84:C96))","v":""}]
[null,"14期終了時",{"$f":"'単位修得状況確認表（専門教育科目）'!AH$15","v":0},{"$f":"IF(SUM($C234:$C$236)=0,\"\",SUM(C$84:C97))","v":""}]
[null,"15期終了時",{"$f":"'単位修得状況確認表（専門教育科目）'!AJ$15","v":0},{"$f":"IF(SUM($C235:$C$236)=0,\"\",SUM(C$84:C98))","v":""}]
[null,"16期終了時",{"$f":"'単位修得状況確認表（専門教育科目）'!AL$15","v":0},{"$f":"IF(SUM($C236:$C$236)=0,\"\",SUM(C$84:C99))","v":""}]
[]
[]
[]
[]
[]
[]
[]
[null,"専門教育科目（プログラム科目：必修）"]
[]
[null,null,"取得単位数","累積取得単位数"]
[null,"1期終了時",{"$f":"'単位修得状況確認表（専門教育科目）'!H$58","v":0},{"$f":"SUM(C$110:C110)","v":0}]
[null,"2期終了時",{"$f":"'単位修得状況確認表（専門教育科目）'!J$58","v":0},{"$f":"SUM(C$110:C111)","v":0}]
[null,"3期終了時",{"$f":"'単位修得状況確認表（専門教育科目）'!L$58","v":0},{"$f":"SUM(C$110:C112)","v":0}]
[null,"4期終了時",{"$f":"'単位修得状況確認表（専門教育科目）'!N$58","v":0},{"$f":"SUM(C$110:C113)","v":0}]
[null,"5期終了時",{"$f":"'単位修得状況確認表（専門教育科目）'!P$58","v":0},{"$f":"SUM(C$110:C114)","v":0}]
[null,"6期終了時",{"$f":"'単位修得状況確認表（専門教育科目）'!R$58","v":0},{"$f":"SUM(C$110:C115)","v":0}]
[null,"7期終了時",{"$f":"'単位修得状況確認表（専門教育科目）'!T$58","v":0},{"$f":"SUM(C$110:C116)","v":0}]
[null,"8期終了時",{"$f":"'単位修得状況確認表（専門教育科目）'!V$58","v":0},{"$f":"SUM(C$110:C117)","v":0}]
[null,"9期終了時",{"$f":"'単位修得状況確認表（専門教育科目）'!X$58","v":0},{"$f":"IF(SUM($C229:$C$236)=0,\"\",SUM(C$110:C118))","v":""}]
[null,"10期終了時",{"$f":"'単位修得状況確認表（専門教育科目）'!Z$58","v":0},{"$f":"IF(SUM($C230:$C$236)=0,\"\",SUM(C$110:C119))","v":""}]
[null,"11期終了時",{"$f":"'単位修得状況確認表（専門教育科目）'!AB$58","v":0},{"$f":"IF(SUM($C231:$C$236)=0,\"\",SUM(C$110:C120))","v":""}]
[null,"12期終了時",{"$f":"'単位修得状況確認表（専門教育科目）'!AD$58","v":0},{"$f":"IF(SUM($C232:$C$236)=0,\"\",SUM(C$110:C121))","v":""}]
[null,"13期終了時",{"$f":"'単位修得状況確認表（専門教育科目）'!AF$58","v":0},{"$f":"IF(SUM($C233:$C$236)=0,\"\",SUM(C$110:C122))","v":""}]
[null,"14期終了時",{"$f":"'単位修得状況確認表（専門教育科目）'!AH$58","v":0},{"$f":"IF(SUM($C234:$C$236)=0,\"\",SUM(C$110:C123))","v":""}]
[null,"15期終了時",{"$f":"'単位修得状況確認表（専門教育科目）'!AJ$58","v":0},{"$f":"IF(SUM($C235:$C$236)=0,\"\",SUM(C$110:C124))","v":""}]
[null,"16期終了時",{"$f":"'単位修得状況確認表（専門教育科目）'!AL$58","v":0},{"$f":"IF(SUM($C$236:$C236)=0,\"\",SUM(C$110:C125))","v":""}]
[]
[]
[]
[]
[]
[]
[]
[]
[]
[]
[]
[]
[]
[]
[null,"専門教育科目（プログラム科目：A群）"]
[]
[null,null,"取得単位数","累積取得単位数"]
[null,"1期終了時",{"$f":"'単位修得状況確認表（専門教育科目）'!H$31","v":0},{"$f":"SUM(C$143:C143)","v":0}]
[null,"2期終了時",{"$f":"'単位修得状況確認表（専門教育科目）'!J$31","v":0},{"$f":"SUM(C$143:C144)","v":0}]
[null,"3期終了時",{"$f":"'単位修得状況確認表（専門教育科目）'!L$31","v":0},{"$f":"SUM(C$143:C145)","v":0}]
[null,"4期終了時",{"$f":"'単位修得状況確認表（専門教育科目）'!N$31","v":0},{"$f":"SUM(C$143:C146)","v":0}]
[null,"5期終了時",{"$f":"'単位修得状況確認表（専門教育科目）'!P$31","v":0},{"$f":"SUM(C$143:C147)","v":0}]
[null,"6期終了時",{"$f":"'単位修得状況確認表（専門教育科目）'!R$31","v":0},{"$f":"SUM(C$143:C148)","v":0}]
[null,"7期終了時",{"$f":"'単位修得状況確認表（専門教育科目）'!T$31","v":0},{"$f":"SUM(C$143:C149)","v":0}]
[null,"8期終了時",{"$f":"'単位修得状況確認表（専門教育科目）'!V$31","v":0},{"$f":"SUM(C$143:C150)","v":0}]
[null,"9期終了時",{"$f":"'単位修得状況確認表（専門教育科目）'!X$31","v":0},{"$f":"IF(SUM($C229:$C$236)=0,\"\",SUM(C$143:C151))","v":""}]
[null,"10期終了時",{"$f":"'単位修得状況確認表（専門教育科目）'!Z$31","v":0},{"$f":"IF(SUM($C230:$C$236)=0,\"\",SUM(C$143:C152))","v":""}]
[null,"11期終了時",{"$f":"'単位修得状況確認表（専門教育科目）'!AB$31","v":0},{"$f":"IF(SUM($C231:$C$236)=0,\"\",SUM(C$143:C153))","v":""}]
[null,"12期終了時",{"$f":"'単位修得状況確認表（専門教育科目）'!AD$31","v":0},{"$f":"IF(SUM($C232:$C$236)=0,\"\",SUM(C$143:C154))","v":""}]
[null,"13期終了時",{"$f":"'単位修得状況確認表（専門教育科目）'!AF$31","v":0},{"$f":"IF(SUM($C233:$C$236)=0,\"\",SUM(C$143:C155))","v":""}]
[null,"14期終了時",{"$f":"'単位修得状況確認表（専門教育科目）'!AH$31","v":0},{"$f":"IF(SUM($C234:$C$236)=0,\"\",SUM(C$143:C156))","v":""}]
[null,"15期終了時",{"$f":"'単位修得状況確認表（専門教育科目）'!AJ$31","v":0},{"$f":"IF(SUM($C235:$C$236)=0,\"\",SUM(C$143:C157))","v":""}]
[null,"16期終了時",{"$f":"'単位修得状況確認表（専門教育科目）'!AL$31","v":0},{"$f":"IF(SUM($C$236:$C236)=0,\"\",SUM(C$143:C158))","v":""}]
[]
[]
[]
[]
[]
[]
[]
[null,"専門教育科目（プログラム科目：B群）"]
[]
[null,null,"取得単位数","累積取得単位数"]
[null,"1期終了時",{"$f":"'単位修得状況確認表（専門教育科目）'!H$63","v":0},{"$f":"SUM(C$169:C169)","v":0}]
[null,"2期終了時",{"$f":"'単位修得状況確認表（専門教育科目）'!J$63","v":0},{"$f":"SUM(C$169:C170)","v":0}]
[null,"3期終了時",{"$f":"'単位修得状況確認表（専門教育科目）'!L$63","v":0},{"$f":"SUM(C$169:C171)","v":0}]
[null,"4期終了時",{"$f":"'単位修得状況確認表（専門教育科目）'!N$63","v":0},{"$f":"SUM(C$169:C172)","v":0}]
[null,"5期終了時",{"$f":"'単位修得状況確認表（専門教育科目）'!P$63","v":0},{"$f":"SUM(C$169:C173)","v":0}]
[null,"6期終了時",{"$f":"'単位修得状況確認表（専門教育科目）'!R$63","v":0},{"$f":"SUM(C$169:C174)","v":0}]
[null,"7期終了時",{"$f":"'単位修得状況確認表（専門教育科目）'!T$63","v":0},{"$f":"SUM(C$169:C175)","v":0}]
[null,"8期終了時",{"$f":"'単位修得状況確認表（専門教育科目）'!V$63","v":0},{"$f":"SUM(C$169:C176)","v":0}]
[null,"9期終了時",{"$f":"'単位修得状況確認表（専門教育科目）'!X$63","v":0},{"$f":"IF(SUM($C229:$C$236)=0,\"\",SUM(C$169:C177))","v":""}]
[null,"10期終了時",{"$f":"'単位修得状況確認表（専門教育科目）'!Z$63","v":0},{"$f":"IF(SUM($C230:$C$236)=0,\"\",SUM(C$169:C178))","v":""}]
[null,"11期終了時",{"$f":"'単位修得状況確認表（専門教育科目）'!AB$63","v":0},{"$f":"IF(SUM($C231:$C$236)=0,\"\",SUM(C$169:C179))","v":""}]
[null,"12期終了時",{"$f":"'単位修得状況確認表（専門教育科目）'!AD$63","v":0},{"$f":"IF(SUM($C232:$C$236)=0,\"\",SUM(C$169:C180))","v":""}]
[null,"13期終了時",{"$f":"'単位修得状況確認表（専門教育科目）'!AF$63","v":0},{"$f":"IF(SUM($C233:$C$236)=0,\"\",SUM(C$169:C181))","v":""}]
[null,"14期終了時",{"$f":"'単位修得状況確認表（専門教育科目）'!AH$63","v":0},{"$f":"IF(SUM($C234:$C$236)=0,\"\",SUM(C$169:C182))","v":""}]
[null,"15期終了時",{"$f":"'単位修得状況確認表（専門教育科目）'!AJ$63","v":0},{"$f":"IF(SUM($C235:$C$236)=0,\"\",SUM(C$169:C183))","v":""}]
[null,"16期終了時",{"$f":"'単位修得状況確認表（専門教育科目）'!AL$63","v":0},{"$f":"IF(SUM($C$236:$C236)=0,\"\",SUM(C$169:C184))","v":""}]
[]
[]
[]
[]
[]
[]
[]
[null,"専門教育科目（プログラム科目：C群）"]
[]
[null,null,"取得単位数","累積取得単位数"]
[null,"1期終了時",{"$f":"'単位修得状況確認表（専門教育科目）'!H$73","v":0},{"$f":"SUM(C195:C$195)","v":0}]
[null,"2期終了時",{"$f":"'単位修得状況確認表（専門教育科目）'!J$73","v":0},{"$f":"SUM(C$195:C196)","v":0}]
[null,"3期終了時",{"$f":"'単位修得状況確認表（専門教育科目）'!L$73","v":0},{"$f":"SUM(C$195:C197)","v":0}]
[null,"4期終了時",{"$f":"'単位修得状況確認表（専門教育科目）'!N$73","v":0},{"$f":"SUM(C$195:C198)","v":0}]
[null,"5期終了時",{"$f":"'単位修得状況確認表（専門教育科目）'!P$73","v":0},{"$f":"SUM(C$195:C199)","v":0}]
[null,"6期終了時",{"$f":"'単位修得状況確認表（専門教育科目）'!R$73","v":0},{"$f":"SUM(C$195:C200)","v":0}]
[null,"7期終了時",{"$f":"'単位修得状況確認表（専門教育科目）'!T$73","v":0},{"$f":"SUM(C$195:C201)","v":0}]
[null,"8期終了時",{"$f":"'単位修得状況確認表（専門教育科目）'!V$73","v":0},{"$f":"SUM(C$195:C202)","v":0}]
[null,"9期終了時",{"$f":"'単位修得状況確認表（専門教育科目）'!X$73","v":0},{"$f":"IF(SUM($C229:$C$236)=0,\"\",SUM(C$195:C203))","v":""}]
[null,"10期終了時",{"$f":"'単位修得状況確認表（専門教育科目）'!Z$73","v":0},{"$f":"IF(SUM($C230:$C$236)=0,\"\",SUM(C$195:C204))","v":""}]
[null,"11期終了時",{"$f":"'単位修得状況確認表（専門教育科目）'!AB$73","v":0},{"$f":"IF(SUM($C231:$C$236)=0,\"\",SUM(C$195:C205))","v":""}]
[null,"12期終了時",{"$f":"'単位修得状況確認表（専門教育科目）'!AD$73","v":0},{"$f":"IF(SUM($C232:$C$236)=0,\"\",SUM(C$195:C206))","v":""}]
[null,"13期終了時",{"$f":"'単位修得状況確認表（専門教育科目）'!AF$73","v":0},{"$f":"IF(SUM($C233:$C$236)=0,\"\",SUM(C$195:C207))","v":""}]
[null,"14期終了時",{"$f":"'単位修得状況確認表（専門教育科目）'!AH$73","v":0},{"$f":"IF(SUM($C234:$C$236)=0,\"\",SUM(C$195:C208))","v":""}]
[null,"15期終了時",{"$f":"'単位修得状況確認表（専門教育科目）'!AJ$73","v":0},{"$f":"IF(SUM($C235:$C$236)=0,\"\",SUM(C$195:C209))","v":""}]
[null,"16期終了時",{"$f":"'単位修得状況確認表（専門教育科目）'!AL$73","v":0},{"$f":"IF(SUM($C236:$C$236)=0,\"\",SUM(C$195:C210))","v":""}]
[]
[]
[]
[]
[]
[]
[]
[null,"累積単位数"]
[]
[null,null,"取得単位数","累積取得単位数"]
[null,"1期終了時",{"$f":"SUM(C6,E6,G6,C45,E45,C84,C110,C143,C169,C195)","v":0},{"$f":"SUM(C$221:C221)","v":0}]
[null,"2期終了時",{"$f":"SUM(C7,E7,G7,C46,E46,C85,C111,C144,C170,C196)","v":0},{"$f":"SUM(C$221:C222)","v":0}]
[null,"3期終了時",0,{"$f":"SUM(C$221:C223)","v":0}]
[null,"4期終了時",0,{"$f":"SUM(C$221:C224)","v":0}]
[null,"5期終了時",0,{"$f":"SUM(C$221:C225)","v":0}]
[null,"6期終了時",0,{"$f":"SUM(C$221:C226)","v":0}]
[null,"7期終了時",0,{"$f":"SUM(C$221:C227)","v":0}]
[null,"8期終了時",0,{"$f":"SUM(C$221:C228)","v":0}]
[null,"9期終了時",0,{"$f":"IF(SUM($C229:$C$236)=0,\"\",SUM(C$221:C229))","v":""}]
[null,"10期終了時",0,{"$f":"IF(SUM($C230:$C$236)=0,\"\",SUM(C$221:C230))","v":""}]
[null,"11期終了時",0,{"$f":"IF(SUM($C231:$C$236)=0,\"\",SUM(C$221:C231))","v":""}]
[null,"12期終了時",0,{"$f":"IF(SUM($C232:$C$236)=0,\"\",SUM(C$221:C232))","v":""}]
[null,"13期終了時",0,{"$f":"IF(SUM($C233:$C$236)=0,\"\",SUM(C$221:C233))","v":""}]
[null,"14期終了時",0,{"$f":"IF(SUM($C234:$C$236)=0,\"\",SUM(C$221:C234))","v":""}]
[null,"15期終了時",0,{"$f":"IF(SUM($C235:$C$236)=0,\"\",SUM(C$221:C235))","v":""}]
[null,"16期終了時",0,{"$f":"IF(SUM($C236:$C$236)=0,\"\",SUM(C$221:C236))","v":""}]
[]
[]
[]
[]
[]
[]
[]
[]
[]
[]
[]
[]
[]
[]
[]
[]
[null,"GPA"]
[]
[null,null,"累積GP","累積GPA","GPA累積単位数","累積P","累積F"]
[null,"1期終了時",{"$f":"'単位修得状況確認表（共通教育科目，留学生）'!H$23+'単位修得状況確認表（専門教育科目）'!I$76","v":0},{"$f":"IF(E256=0,0,C256/E256)","v":0},{"$f":"D221-F256+G256","v":0},{"$f":"SUM('単位修得状況確認表（共通教育科目，留学生）'!G$26,'単位修得状況確認表（専門教育科目）'!H$80)","v":0},{"$f":"SUM('単位修得状況確認表（共通教育科目，留学生）'!G$27,'単位修得状況確認表（専門教育科目）'!H$81)-SUM('単位修得状況確認表（共通教育科目，留学生）'!G$28,'単位修得状況確認表（専門教育科目）'!H$82)","v":0}]
[null,"2期終了時",{"$f":"C256+'単位修得状況確認表（共通教育科目，留学生）'!J$23+'単位修得状況確認表（専門教育科目）'!K$76","v":0},{"$f":"IF(E257=0,0,C257/E257)","v":0},0,{"$f":"SUM(F256,'単位修得状況確認表（共通教育科目，留学生）'!I$26,'単位修得状況確認表（専門教育科目）'!J$80)","v":0},{"$f":"SUM(G256,'単位修得状況確認表（共通教育科目，留学生）'!I$27,'単位修得状況確認表（専門教育科目）'!J$81)-SUM('単位修得状況確認表（共通教育科目，留学生）'!I$28,'単位修得状況確認表（専門教育科目）'!J$82)","v":0}]
[null,"3期終了時",{"$f":"C257+'単位修得状況確認表（共通教育科目，留学生）'!L$23+'単位修得状況確認表（専門教育科目）'!M$76","v":0},0,0,{"$f":"SUM(F257,'単位修得状況確認表（共通教育科目，留学生）'!K$26,'単位修得状況確認表（専門教育科目）'!L$80)","v":0},{"$f":"SUM(G257,'単位修得状況確認表（共通教育科目，留学生）'!K$27,'単位修得状況確認表（専門教育科目）'!L$81)-SUM('単位修得状況確認表（共通教育科目，留学生）'!K$28,'単位修得状況確認表（専門教育科目）'!L$82)","v":0}]
[null,"4期終了時",{"$f":"C258+'単位修得状況確認表（共通教育科目，留学生）'!N$23+'単位修得状況確認表（専門教育科目）'!O$76","v":0},0,0,{"$f":"SUM(F258,'単位修得状況確認表（共通教育科目，留学生）'!M$26,'単位修得状況確認表（専門教育科目）'!N$80)","v":0},{"$f":"SUM(G258,'単位修得状況確認表（共通教育科目，留学生）'!M$27,'単位修得状況確認表（専門教育科目）'!N$81)-SUM('単位修得状況確認表（共通教育科目，留学生）'!M$28,'単位修得状況確認表（専門教育科目）'!N$82)","v":0}]
[null,"5期終了時",{"$f":"C259+'単位修得状況確認表（共通教育科目，留学生）'!P$23+'単位修得状況確認表（専門教育科目）'!Q$76","v":0},0,0,{"$f":"SUM(F259,'単位修得状況確認表（共通教育科目，留学生）'!O$26,'単位修得状況確認表（専門教育科目）'!P$80)","v":0},{"$f":"SUM(G259,'単位修得状況確認表（共通教育科目，留学生）'!O$27,'単位修得状況確認表（専門教育科目）'!P$81)-SUM('単位修得状況確認表（共通教育科目，留学生）'!O$28,'単位修得状況確認表（専門教育科目）'!P$82)","v":0}]
[null,"6期終了時",{"$f":"C260+'単位修得状況確認表（共通教育科目，留学生）'!R$23+'単位修得状況確認表（専門教育科目）'!S$76","v":0},0,0,{"$f":"SUM(F260,'単位修得状況確認表（共通教育科目，留学生）'!Q$26,'単位修得状況確認表（専門教育科目）'!R$80)","v":0},{"$f":"SUM(G260,'単位修得状況確認表（共通教育科目，留学生）'!Q$27,'単位修得状況確認表（専門教育科目）'!R$81)-SUM('単位修得状況確認表（共通教育科目，留学生）'!Q$28,'単位修得状況確認表（専門教育科目）'!R$82)","v":0}]
[null,"7期終了時",{"$f":"C261+'単位修得状況確認表（共通教育科目，留学生）'!T$23+'単位修得状況確認表（専門教育科目）'!U$76","v":0},0,0,{"$f":"SUM(F261,'単位修得状況確認表（共通教育科目，留学生）'!S$26,'単位修得状況確認表（専門教育科目）'!T$80)","v":0},{"$f":"SUM(G261,'単位修得状況確認表（共通教育科目，留学生）'!S$27,'単位修得状況確認表（専門教育科目）'!T$81)-SUM('単位修得状況確認表（共通教育科目，留学生）'!S$28,'単位修得状況確認表（専門教育科目）'!T$82)","v":0}]
[null,"8期終了時",{"$f":"C262+'単位修得状況確認表（共通教育科目，留学生）'!V$23+'単位修得状況確認表（専門教育科目）'!W$76","v":0},{"$f":"IF(E263=0,0,C263/E263)","v":0},0,{"$f":"SUM(F262,'単位修得状況確認表（共通教育科目，留学生）'!U$26,'単位修得状況確認表（専門教育科目）'!V$80)","v":0},{"$f":"SUM(G262,'単位修得状況確認表（共通教育科目，留学生）'!U$27,'単位修得状況確認表（専門教育科目）'!V$81)-SUM('単位修得状況確認表（共通教育科目，留学生）'!U$28,'単位修得状況確認表（専門教育科目）'!V$82)","v":0}]
[null,"9期終了時",{"$f":"C263+'単位修得状況確認表（共通教育科目，留学生）'!X$23+'単位修得状況確認表（専門教育科目）'!Y$76","v":0},{"$f":"IF(E264=\"\",\"\",IF(E264=0,0,C264/E264))","v":""},{"$f":"IF(D229=\"\",\"\",D229-F264+G264)","v":""},{"$f":"SUM(F263,'単位修得状況確認表（共通教育科目，留学生）'!W$26,'単位修得状況確認表（専門教育科目）'!X$80)","v":0},{"$f":"SUM(G263,'単位修得状況確認表（共通教育科目，留学生）'!W$27,'単位修得状況確認表（専門教育科目）'!X$81)-SUM('単位修得状況確認表（共通教育科目，留学生）'!W$28,'単位修得状況確認表（専門教育科目）'!X$82)","v":0}]
[null,"10期終了時",{"$f":"C264+'単位修得状況確認表（共通教育科目，留学生）'!Z$23+'単位修得状況確認表（専門教育科目）'!AA$76","v":0},{"$f":"IF(E265=\"\",\"\",IF(E265=0,0,C265/E265))","v":""},{"$f":"IF(D230=\"\",\"\",D230-F265+G265)","v":""},{"$f":"SUM(F264,'単位修得状況確認表（共通教育科目，留学生）'!Y$26,'単位修得状況確認表（専門教育科目）'!Z$80)","v":0},{"$f":"SUM(G264,'単位修得状況確認表（共通教育科目，留学生）'!Y$27,'単位修得状況確認表（専門教育科目）'!Z$81)-SUM('単位修得状況確認表（共通教育科目，留学生）'!Y$28,'単位修得状況確認表（専門教育科目）'!Z$82)","v":0}]
[null,"11期終了時",{"$f":"C265+'単位修得状況確認表（共通教育科目，留学生）'!AB$23+'単位修得状況確認表（専門教育科目）'!AC$76","v":0},"","",{"$f":"SUM(F265,'単位修得状況確認表（共通教育科目，留学生）'!AA$26,'単位修得状況確認表（専門教育科目）'!AB$80)","v":0},{"$f":"SUM(G265,'単位修得状況確認表（共通教育科目，留学生）'!AA$27,'単位修得状況確認表（専門教育科目）'!AB$81)-SUM('単位修得状況確認表（共通教育科目，留学生）'!AA$28,'単位修得状況確認表（専門教育科目）'!AB$82)","v":0}]
[null,"12期終了時",{"$f":"C266+'単位修得状況確認表（共通教育科目，留学生）'!AD$23+'単位修得状況確認表（専門教育科目）'!AE$76","v":0},"","",{"$f":"SUM(F266,'単位修得状況確認表（共通教育科目，留学生）'!AC$26,'単位修得状況確認表（専門教育科目）'!AD$80)","v":0},{"$f":"SUM(G266,'単位修得状況確認表（共通教育科目，留学生）'!AC$27,'単位修得状況確認表（専門教育科目）'!AD$81)-SUM('単位修得状況確認表（共通教育科目，留学生）'!AC$28,'単位修得状況確認表（専門教育科目）'!AD$82)","v":0}]
[null,"13期終了時",{"$f":"C267+'単位修得状況確認表（共通教育科目，留学生）'!AF$23+'単位修得状況確認表（専門教育科目）'!AG$76","v":0},"","",{"$f":"SUM(F267,'単位修得状況確認表（共通教育科目，留学生）'!AE$26,'単位修得状況確認表（専門教育科目）'!AF$80)","v":0},{"$f":"SUM(G267,'単位修得状況確認表（共通教育科目，留学生）'!AE$27,'単位修得状況確認表（専門教育科目）'!AF$81)-SUM('単位修得状況確認表（共通教育科目，留学生）'!AE$28,'単位修得状況確認表（専門教育科目）'!AF$82)","v":0}]
[null,"14期終了時",{"$f":"C268+'単位修得状況確認表（共通教育科目，留学生）'!AH$23+'単位修得状況確認表（専門教育科目）'!AI$76","v":0},"","",{"$f":"SUM(F268,'単位修得状況確認表（共通教育科目，留学生）'!AG$26,'単位修得状況確認表（専門教育科目）'!AH$80)","v":0},{"$f":"SUM(G268,'単位修得状況確認表（共通教育科目，留学生）'!AG$27,'単位修得状況確認表（専門教育科目）'!AH$81)-SUM('単位修得状況確認表（共通教育科目，留学生）'!AG$28,'単位修得状況確認表（専門教育科目）'!AH$82)","v":0}]
[null,"15期終了時",{"$f":"C269+'単位修得状況確認表（共通教育科目，留学生）'!AJ$23+'単位修得状況確認表（専門教育科目）'!AK$76","v":0},"","",{"$f":"SUM(F269,'単位修得状況確認表（共通教育科目，留学生）'!AI$26,'単位修得状況確認表（専門教育科目）'!AJ$80)","v":0},{"$f":"SUM(G269,'単位修得状況確認表（共通教育科目，留学生）'!AI$27,'単位修得状況確認表（専門教育科目）'!AJ$81)-SUM('単位修得状況確認表（共通教育科目，留学生）'!AI$28,'単位修得状況確認表（専門教育科目）'!AJ$82)","v":0}]
[null,"16期終了時",{"$f":"C270+'単位修得状況確認表（共通教育科目，留学生）'!AL$23+'単位修得状況確認表（専門教育科目）'!AM$76","v":0},"","",{"$f":"SUM(F270,'単位修得状況確認表（共通教育科目，留学生）'!AK$26,'単位修得状況確認表（専門教育科目）'!AL$80)","v":0},{"$f":"SUM(G270,'単位修得状況確認表（共通教育科目，留学生）'!AK$27,'単位修得状況確認表（専門教育科目）'!AL$81)-SUM('単位修得状況確認表（共通教育科目，留学生）'!AK$28,'単位修得状況確認表（専門教育科目）'!AL$82)","v":0}]